Workbook

Sheet Display
F2: CQG SPDR S&P Metals & Mining ETF | AB2: =RTD("cqg.rtd", ,"SystemInfo", "Linetime") -> 45884.35715
B5: Exchange Traded Funds Performance | S5: Today's Ranked Performance
B6: Symbol | C6: Description | H6: Last | I6: NC | J6: %NC | K6: NC/ATR | L6: Open | M6: High | N6: Low | O6: Volume | Q6: Ratio
B7: S.XME | C7: =RTD("cqg.rtd", ,"ContractData",B7, "LongDescription",, "T") -> SPDR S&P Metals & Mining ETF | H7: =RTD("cqg.rtd", ,"ContractData",B7, "LastTradeToday",, "T") -> 80.7 | I7: =RTD("cqg.rtd", ,"ContractData",B7, "NetLastTradeToday",, "T") -> 0.09 | J7: =IFERROR(RTD("cqg.rtd", ,"ContractData",B7, "PerCentNetLastTrade",, "T")/100,"") -> 0.001116486788 | K7: =IFERROR(I7/RTD("cqg.rtd",,"StudyData",B7, "ATR", "MaType=Sim,Period=10", "ATR","D","-1","ALL",,,"FALSE","T")/100,"") -> 0.0004479840717 | L7: =RTD("cqg.rtd", ,"ContractData",B7, "OPen",, "T") -> 81.02 | M7: =RTD("cqg.rtd", ,"ContractData", B7, "HIgh",, "T") -> 81.02 | N7: =RTD("cqg.rtd", ,"ContractData",B7, "LOw",, "T") -> 80.54 | O7: =RTD("cqg.rtd", ,"ContractData",B7, "T_CVol",, "T") -> 79735 | Q7: =IFERROR(O7/RTD("cqg.rtd",,"StudyData",B7, "MA", "InputChoice=Vol,MAType=Sim,Period=21", "MA","D","-1","all",,,,"T"),"") -> 0.03784680758
B8: SPY | C8: =RTD("cqg.rtd", ,"ContractData",B8, "LongDescription",, "T") -> SPDR S&P 500 | H8: =RTD("cqg.rtd", ,"ContractData",B8, "LastTradeToday",, "T") -> 645.42 | I8: =RTD("cqg.rtd", ,"ContractData",B8, "NetLastTradeToday",, "T") -> 1.19 | J8: =IFERROR(RTD("cqg.rtd", ,"ContractData",B8, "PerCentNetLastTrade",, "T")/100,"") -> 0.001847166385 | K8: =IFERROR(I8/RTD("cqg.rtd",,"StudyData",B8, "ATR", "MaType=Sim,Period=10", "ATR","D","-1","ALL",,,"FALSE","T")/100,"") -> 0.001846679081 | L8: =RTD("cqg.rtd", ,"ContractData",B8, "OPen",, "T") -> 645.99 | M8: =RTD("cqg.rtd", ,"ContractData", B8, "HIgh",, "T") -> 646.09 | N8: =RTD("cqg.rtd", ,"ContractData",B8, "LOw",, "T") -> 645.2 | O8: =RTD("cqg.rtd", ,"ContractData",B8, "T_CVol",, "T") -> 2476884 | Q8: =IFERROR(O8/RTD("cqg.rtd",,"StudyData",B8, "MA", "InputChoice=Vol,MAType=Sim,Period=21", "MA","D","-1","all",,,,"T"),"") -> 0.03507797672
B9: XLF | C9: =RTD("cqg.rtd", ,"ContractData",B9, "LongDescription",, "T") -> Financial Select Sector SPDR | H9: =RTD("cqg.rtd", ,"ContractData",B9, "LastTradeToday",, "T") -> 53.02 | I9: =RTD("cqg.rtd", ,"ContractData",B9, "NetLastTradeToday",, "T") -> 0.02 | J9: =IFERROR(RTD("cqg.rtd", ,"ContractData",B9, "PerCentNetLastTrade",, "T")/100,"") -> 0.0003772873043 | K9: =IFERROR(I9/RTD("cqg.rtd",,"StudyData",B9, "ATR", "MaType=Sim,Period=10", "ATR","D","-1","ALL",,,"FALSE","T")/100,"") -> 0.0003053435115 | L9: =RTD("cqg.rtd", ,"ContractData",B9, "OPen",, "T") -> 53.13 | M9: =RTD("cqg.rtd", ,"ContractData", B9, "HIgh",, "T") -> 53.15 | N9: =RTD("cqg.rtd", ,"ContractData",B9, "LOw",, "T") -> 53.02 | O9: =RTD("cqg.rtd", ,"ContractData",B9, "T_CVol",, "T") -> 1230426 | Q9: =IFERROR(O9/RTD("cqg.rtd",,"StudyData",B9, "MA", "InputChoice=Vol,MAType=Sim,Period=21", "MA","D","-1","all",,,,"T"),"") -> 0.0327743944
B10: S.XLY | C10: =RTD("cqg.rtd", ,"ContractData",B10, "LongDescription",, "T") -> Consumer Discretionary Select SectorSPDR | H10: =RTD("cqg.rtd", ,"ContractData",B10, "LastTradeToday",, "T") -> 230.65 | I10: =RTD("cqg.rtd", ,"ContractData",B10, "NetLastTradeToday",, "T") -> 1.06 | J10: =IFERROR(RTD("cqg.rtd", ,"ContractData",B10, "PerCentNetLastTrade",, "T")/100,"") -> 0.004616925824 | K10: =IFERROR(I10/RTD("cqg.rtd",,"StudyData",B10, "ATR", "MaType=Sim,Period=10", "ATR","D","-1","ALL",,,"FALSE","T")/100,"") -> 0.00345276873 | L10: =RTD("cqg.rtd", ,"ContractData",B10, "OPen",, "T") -> 230.79 | M10: =RTD("cqg.rtd", ,"ContractData", B10, "HIgh",, "T") -> 231.03 | N10: =RTD("cqg.rtd", ,"ContractData",B10, "LOw",, "T") -> 230.38 | O10: =RTD("cqg.rtd", ,"ContractData",B10, "T_CVol",, "T") -> 63660 | Q10: =IFERROR(O10/RTD("cqg.rtd",,"StudyData",B10, "MA", "InputChoice=Vol,MAType=Sim,Period=21", "MA","D","-1","all",,,,"T"),"") -> 0.01066655892
B11: S.FXI | C11: =RTD("cqg.rtd", ,"ContractData",B11, "LongDescription",, "T") -> iShares China Large-Cap ETF | H11: =RTD("cqg.rtd", ,"ContractData",B11, "LastTradeToday",, "T") -> 38.38 | I11: =RTD("cqg.rtd", ,"ContractData",B11, "NetLastTradeToday",, "T") -> 0.04 | J11: =IFERROR(RTD("cqg.rtd", ,"ContractData",B11, "PerCentNetLastTrade",, "T")/100,"") -> 0.001043296818 | K11: =IFERROR(I11/RTD("cqg.rtd",,"StudyData",B11, "ATR", "MaType=Sim,Period=10", "ATR","D","-1","ALL",,,"FALSE","T")/100,"") -> 0.0006666666667 | L11: =RTD("cqg.rtd", ,"ContractData",B11, "OPen",, "T") -> 38.38 | M11: =RTD("cqg.rtd", ,"ContractData", B11, "HIgh",, "T") -> 38.46 | N11: =RTD("cqg.rtd", ,"ContractData",B11, "LOw",, "T") -> 38.36 | O11: =RTD("cqg.rtd", ,"ContractData",B11, "T_CVol",, "T") -> 1447021 | Q11: =IFERROR(O11/RTD("cqg.rtd",,"StudyData",B11, "MA", "InputChoice=Vol,MAType=Sim,Period=21", "MA","D","-1","all",,,,"T"),"") -> 0.05044812189
B12: IWF | C12: =RTD("cqg.rtd", ,"ContractData",B12, "LongDescription",, "T") -> iShares Russell 1000 Growth ETF | H12: =RTD("cqg.rtd", ,"ContractData",B12, "LastTradeToday",, "T") -> 450.34 | I12: =RTD("cqg.rtd", ,"ContractData",B12, "NetLastTradeToday",, "T") -> -0.09 | J12: =IFERROR(RTD("cqg.rtd", ,"ContractData",B12, "PerCentNetLastTrade",, "T")/100,"") -> -0.0001998090713 | K12: =IFERROR(I12/RTD("cqg.rtd",,"StudyData",B12, "ATR", "MaType=Sim,Period=10", "ATR","D","-1","ALL",,,"FALSE","T")/100,"") -> -0.0001512350865 | L12: =RTD("cqg.rtd", ,"ContractData",B12, "OPen",, "T") -> 451.18 | M12: =RTD("cqg.rtd", ,"ContractData", B12, "HIgh",, "T") -> 451.18 | N12: =RTD("cqg.rtd", ,"ContractData",B12, "LOw",, "T") -> 450.01 | O12: =RTD("cqg.rtd", ,"ContractData",B12, "T_CVol",, "T") -> 25288 | Q12: =IFERROR(O12/RTD("cqg.rtd",,"StudyData",B12, "MA", "InputChoice=Vol,MAType=Sim,Period=21", "MA","D","-1","all",,,,"T"),"") -> 0.02485778513
B13: IWO | C13: =RTD("cqg.rtd", ,"ContractData",B13, "LongDescription",, "T") -> iShares Russell 2000 Growth ETF | H13: =RTD("cqg.rtd", ,"ContractData",B13, "LastTradeToday",, "T") -> 300.93 | I13: =RTD("cqg.rtd", ,"ContractData",B13, "NetLastTradeToday",, "T") -> 0.48 | J13: =IFERROR(RTD("cqg.rtd", ,"ContractData",B13, "PerCentNetLastTrade",, "T")/100,"") -> 0.001597603595 | K13: =IFERROR(I13/RTD("cqg.rtd",,"StudyData",B13, "ATR", "MaType=Sim,Period=10", "ATR","D","-1","ALL",,,"FALSE","T")/100,"") -> 0.0008441786845 | L13: =RTD("cqg.rtd", ,"ContractData",B13, "OPen",, "T") -> 301.6 | M13: =RTD("cqg.rtd", ,"ContractData", B13, "HIgh",, "T") -> 301.6 | N13: =RTD("cqg.rtd", ,"ContractData",B13, "LOw",, "T") -> 300.78 | O13: =RTD("cqg.rtd", ,"ContractData",B13, "T_CVol",, "T") -> 9341 | Q13: =IFERROR(O13/RTD("cqg.rtd",,"StudyData",B13, "MA", "InputChoice=Vol,MAType=Sim,Period=21", "MA","D","-1","all",,,,"T"),"") -> 0.02659735156
B14: EP | C14: =RTD("cqg.rtd", ,"ContractData",B14, "LongDescription",, "T") -> E-Mini S&P 500, Sep 25 | H14: =RTD("cqg.rtd", ,"ContractData",B14, "LastTradeToday",, "T") -> 6490.75 | I14: =RTD("cqg.rtd", ,"ContractData",B14, "NetLastTradeToday",, "T") -> 0.25 | J14: =IFERROR(RTD("cqg.rtd", ,"ContractData",B14, "PerCentNetLastTrade",, "T")/100,"") -> 3.851783376e-05 | K14: =IFERROR(I14/RTD("cqg.rtd",,"StudyData",B14, "ATR", "MaType=Sim,Period=10", "ATR","D","-1","ALL",,,"FALSE","T")/100,"") -> 3.37723742e-05 | L14: =RTD("cqg.rtd", ,"ContractData",B14, "OPen",, "T") -> 6489.25 | M14: =RTD("cqg.rtd", ,"ContractData", B14, "HIgh",, "T") -> 6508.75 | N14: =RTD("cqg.rtd", ,"ContractData",B14, "LOw",, "T") -> 6486.75 | O14: =RTD("cqg.rtd", ,"ContractData",B14, "T_CVol",, "T") -> 187380 | Q14: =IFERROR(O14/RTD("cqg.rtd",,"StudyData",B14, "MA", "InputChoice=Vol,MAType=Sim,Period=21", "MA","D","-1","all",,,,"T"),"") -> 0.1507423399
B15: XLE | C15: =RTD("cqg.rtd", ,"ContractData",B15, "LongDescription",, "T") -> Energy Select Sector SPDR | H15: =RTD("cqg.rtd", ,"ContractData",B15, "LastTradeToday",, "T") -> 85.71 | I15: =RTD("cqg.rtd", ,"ContractData",B15, "NetLastTradeToday",, "T") -> 0.15 | J15: =IFERROR(RTD("cqg.rtd", ,"ContractData",B15, "PerCentNetLastTrade",, "T")/100,"") -> 0.00175315568 | K15: =IFERROR(I15/RTD("cqg.rtd",,"StudyData",B15, "ATR", "MaType=Sim,Period=10", "ATR","D","-1","ALL",,,"FALSE","T")/100,"") -> 0.00102319236 | L15: =RTD("cqg.rtd", ,"ContractData",B15, "OPen",, "T") -> 85.6 | M15: =RTD("cqg.rtd", ,"ContractData", B15, "HIgh",, "T") -> 85.8 | N15: =RTD("cqg.rtd", ,"ContractData",B15, "LOw",, "T") -> 85.41 | O15: =RTD("cqg.rtd", ,"ContractData",B15, "T_CVol",, "T") -> 902461 | Q15: =IFERROR(O15/RTD("cqg.rtd",,"StudyData",B15, "MA", "InputChoice=Vol,MAType=Sim,Period=21", "MA","D","-1","all",,,,"T"),"") -> 0.05742026588
B16: USO | C16: =RTD("cqg.rtd", ,"ContractData",B16, "LongDescription",, "T") -> United States Oil Fund | H16: =RTD("cqg.rtd", ,"ContractData",B16, "LastTradeToday",, "T") -> 72.79 | I16: =RTD("cqg.rtd", ,"ContractData",B16, "NetLastTradeToday",, "T") -> -0.88 | J16: =IFERROR(RTD("cqg.rtd", ,"ContractData",B16, "PerCentNetLastTrade",, "T")/100,"") -> -0.01194516085 | K16: =IFERROR(I16/RTD("cqg.rtd",,"StudyData",B16, "ATR", "MaType=Sim,Period=10", "ATR","D","-1","ALL",,,"FALSE","T")/100,"") -> -0.005019965773 | L16: =RTD("cqg.rtd", ,"ContractData",B16, "OPen",, "T") -> 73 | M16: =RTD("cqg.rtd", ,"ContractData", B16, "HIgh",, "T") -> 73 | N16: =RTD("cqg.rtd", ,"ContractData",B16, "LOw",, "T") -> 72.49 | O16: =RTD("cqg.rtd", ,"ContractData",B16, "T_CVol",, "T") -> 295495 | Q16: =IFERROR(O16/RTD("cqg.rtd",,"StudyData",B16, "MA", "InputChoice=Vol,MAType=Sim,Period=21", "MA","D","-1","all",,,,"T"),"") -> 0.05835323674
C17: Ranked Performance | H17: Last | I17: NC | J17: %NC | K17: NC/ATR | L17: Open | M17: High | N17: Low | O17: Volume | Q17: Ratio
A18: =TRIM(XME!O1) -> S.US.NUE | B18: News | C18: =IFERROR(RTD("cqg.rtd", ,"ContractData",A18, "LongDescription",, "T")&" ("&RIGHT(A18,LEN(A18)-5)&")","") -> Nucor Corp (NUE) | H18: =IFERROR(RTD("cqg.rtd", ,"ContractData",A18, "LastTradeToday",, "T"),"") -> 148.52 | I18: =IFERROR(RTD("cqg.rtd", ,"ContractData",A18, "NetLastTradeToday",, "T"),"") -> 4.17 | J18: =IFERROR(RTD("cqg.rtd", ,"ContractData",A18, "PerCentNetLastTrade",, "T")/100,"") -> 0.02888811915 | K18: =IFERROR(I18/RTD("cqg.rtd",,"StudyData",A18, "ATR", "MaType=Sim,Period=10", "ATR","D","-1","ALL",,,"FALSE","T")/100,"") -> 0.01103174603 | L18: =IFERROR(RTD("cqg.rtd", ,"ContractData",A18, "OPen",, "T"),"") -> 151 | M18: =IFERROR(RTD("cqg.rtd", ,"ContractData", A18, "HIgh",, "T"),"") -> 151.31 | N18: =IFERROR(RTD("cqg.rtd", ,"ContractData",A18, "LOw",, "T"),"") -> 148.19 | O18: =IFERROR(RTD("cqg.rtd", ,"ContractData",A18, "T_CVol",, "T"),"") -> 328590 | Q18: =IFERROR(O18/RTD("cqg.rtd",,"StudyData",A18, "MA", "InputChoice=Vol,MAType=Sim,Period=21", "MA","D","-1","all",,,,"T"),"") -> 0.1953811948 | R18: =XME!R1 -> https://finance.yahoo.com/quote/NUE
A19: =TRIM(XME!O2) -> S.US.STLD | B19: News | C19: =IFERROR(RTD("cqg.rtd", ,"ContractData",A19, "LongDescription",, "T")&" ("&RIGHT(A19,LEN(A19)-5)&")","") -> Steel Dynamics Inc (STLD) | H19: =IFERROR(RTD("cqg.rtd", ,"ContractData",A19, "LastTradeToday",, "T"),"") -> 129.36 | I19: =IFERROR(RTD("cqg.rtd", ,"ContractData",A19, "NetLastTradeToday",, "T"),"") -> 1.88 | J19: =IFERROR(RTD("cqg.rtd", ,"ContractData",A19, "PerCentNetLastTrade",, "T")/100,"") -> 0.01474741136 | K19: =IFERROR(I19/RTD("cqg.rtd",,"StudyData",A19, "ATR", "MaType=Sim,Period=10", "ATR","D","-1","ALL",,,"FALSE","T")/100,"") -> 0.005420991926 | L19: =IFERROR(RTD("cqg.rtd", ,"ContractData",A19, "OPen",, "T"),"") -> 130.45 | M19: =IFERROR(RTD("cqg.rtd", ,"ContractData", A19, "HIgh",, "T"),"") -> 131.01 | N19: =IFERROR(RTD("cqg.rtd", ,"ContractData",A19, "LOw",, "T"),"") -> 129.11 | O19: =IFERROR(RTD("cqg.rtd", ,"ContractData",A19, "T_CVol",, "T"),"") -> 107439 | Q19: =IFERROR(O19/RTD("cqg.rtd",,"StudyData",A19, "MA", "InputChoice=Vol,MAType=Sim,Period=21", "MA","D","-1","all",,,,"T"),"") -> 0.07980663343 | R19: =XME!R2 -> https://finance.yahoo.com/quote/STLD
A20: =TRIM(XME!O3) -> S.US.CLF | B20: News | C20: =IFERROR(RTD("cqg.rtd", ,"ContractData",A20, "LongDescription",, "T")&" ("&RIGHT(A20,LEN(A20)-5)&")","") -> Cleveland-Cliffs Inc. (CLF) | H20: =IFERROR(RTD("cqg.rtd", ,"ContractData",A20, "LastTradeToday",, "T"),"") -> 10.65 | I20: =IFERROR(RTD("cqg.rtd", ,"ContractData",A20, "NetLastTradeToday",, "T"),"") -> 0.09 | J20: =IFERROR(RTD("cqg.rtd", ,"ContractData",A20, "PerCentNetLastTrade",, "T")/100,"") -> 0.008522727273 | K20: =IFERROR(I20/RTD("cqg.rtd",,"StudyData",A20, "ATR", "MaType=Sim,Period=10", "ATR","D","-1","ALL",,,"FALSE","T")/100,"") -> 0.001761252446 | L20: =IFERROR(RTD("cqg.rtd", ,"ContractData",A20, "OPen",, "T"),"") -> 10.7 | M20: =IFERROR(RTD("cqg.rtd", ,"ContractData", A20, "HIgh",, "T"),"") -> 10.73 | N20: =IFERROR(RTD("cqg.rtd", ,"ContractData",A20, "LOw",, "T"),"") -> 10.57 | O20: =IFERROR(RTD("cqg.rtd", ,"ContractData",A20, "T_CVol",, "T"),"") -> 699099 | Q20: =IFERROR(O20/RTD("cqg.rtd",,"StudyData",A20, "MA", "InputChoice=Vol,MAType=Sim,Period=21", "MA","D","-1","all",,,,"T"),"") -> 0.02719322184 | R20: =XME!R3 -> https://finance.yahoo.com/quote/CLF
A21: =TRIM(XME!O4) -> S.US.FCX | B21: News | C21: =IFERROR(RTD("cqg.rtd", ,"ContractData",A21, "LongDescription",, "T")&" ("&RIGHT(A21,LEN(A21)-5)&")","") -> Freeport-McMoRan Inc. (FCX) | H21: =IFERROR(RTD("cqg.rtd", ,"ContractData",A21, "LastTradeToday",, "T"),"") -> 42.58 | I21: =IFERROR(RTD("cqg.rtd", ,"ContractData",A21, "NetLastTradeToday",, "T"),"") -> 0.3 | J21: =IFERROR(RTD("cqg.rtd", ,"ContractData",A21, "PerCentNetLastTrade",, "T")/100,"") -> 0.007095553453 | K21: =IFERROR(I21/RTD("cqg.rtd",,"StudyData",A21, "ATR", "MaType=Sim,Period=10", "ATR","D","-1","ALL",,,"FALSE","T")/100,"") -> 0.002795899348 | L21: =IFERROR(RTD("cqg.rtd", ,"ContractData",A21, "OPen",, "T"),"") -> 42.7 | M21: =IFERROR(RTD("cqg.rtd", ,"ContractData", A21, "HIgh",, "T"),"") -> 42.8 | N21: =IFERROR(RTD("cqg.rtd", ,"ContractData",A21, "LOw",, "T"),"") -> 42.53 | O21: =IFERROR(RTD("cqg.rtd", ,"ContractData",A21, "T_CVol",, "T"),"") -> 797156 | Q21: =IFERROR(O21/RTD("cqg.rtd",,"StudyData",A21, "MA", "InputChoice=Vol,MAType=Sim,Period=21", "MA","D","-1","all",,,,"T"),"") -> 0.04693057789 | R21: =XME!R4 -> https://finance.yahoo.com/quote/FCX
A22: =TRIM(XME!O5) -> S.US.MP | B22: News | C22: =IFERROR(RTD("cqg.rtd", ,"ContractData",A22, "LongDescription",, "T")&" ("&RIGHT(A22,LEN(A22)-5)&")","") -> MP Materials Corp. (MP) | H22: =IFERROR(RTD("cqg.rtd", ,"ContractData",A22, "LastTradeToday",, "T"),"") -> 77.1 | I22: =IFERROR(RTD("cqg.rtd", ,"ContractData",A22, "NetLastTradeToday",, "T"),"") -> 0.52 | J22: =IFERROR(RTD("cqg.rtd", ,"ContractData",A22, "PerCentNetLastTrade",, "T")/100,"") -> 0.00679028467 | K22: =IFERROR(I22/RTD("cqg.rtd",,"StudyData",A22, "ATR", "MaType=Sim,Period=10", "ATR","D","-1","ALL",,,"FALSE","T")/100,"") -> 0.0009950248756 | L22: =IFERROR(RTD("cqg.rtd", ,"ContractData",A22, "OPen",, "T"),"") -> 76.85 | M22: =IFERROR(RTD("cqg.rtd", ,"ContractData", A22, "HIgh",, "T"),"") -> 77.7 | N22: =IFERROR(RTD("cqg.rtd", ,"ContractData",A22, "LOw",, "T"),"") -> 76.26 | O22: =IFERROR(RTD("cqg.rtd", ,"ContractData",A22, "T_CVol",, "T"),"") -> 617314 | Q22: =IFERROR(O22/RTD("cqg.rtd",,"StudyData",A22, "MA", "InputChoice=Vol,MAType=Sim,Period=21", "MA","D","-1","all",,,,"T"),"") -> 0.03830998829 | R22: =XME!R5 -> https://finance.yahoo.com/quote/MP
A23: =TRIM(XME!O6) -> S.US.MTUS | B23: News | C23: =IFERROR(RTD("cqg.rtd", ,"ContractData",A23, "LongDescription",, "T")&" ("&RIGHT(A23,LEN(A23)-5)&")","") -> Metallus Inc. (MTUS) | H23: =IFERROR(RTD("cqg.rtd", ,"ContractData",A23, "LastTradeToday",, "T"),"") -> 16.04 | I23: =IFERROR(RTD("cqg.rtd", ,"ContractData",A23, "NetLastTradeToday",, "T"),"") -> 0.1 | J23: =IFERROR(RTD("cqg.rtd", ,"ContractData",A23, "PerCentNetLastTrade",, "T")/100,"") -> 0.006273525721 | K23: =IFERROR(I23/RTD("cqg.rtd",,"StudyData",A23, "ATR", "MaType=Sim,Period=10", "ATR","D","-1","ALL",,,"FALSE","T")/100,"") -> 0.001459854015 | L23: =IFERROR(RTD("cqg.rtd", ,"ContractData",A23, "OPen",, "T"),"") -> 16.01 | M23: =IFERROR(RTD("cqg.rtd", ,"ContractData", A23, "HIgh",, "T"),"") -> 16.04 | N23: =IFERROR(RTD("cqg.rtd", ,"ContractData",A23, "LOw",, "T"),"") -> 16 | O23: =IFERROR(RTD("cqg.rtd", ,"ContractData",A23, "T_CVol",, "T"),"") -> 27989 | Q23: =IFERROR(O23/RTD("cqg.rtd",,"StudyData",A23, "MA", "InputChoice=Vol,MAType=Sim,Period=21", "MA","D","-1","all",,,,"T"),"") -> 0.07489602182 | R23: =XME!R6 -> https://finance.yahoo.com/quote/MTUS
A24: =TRIM(XME!O7) -> S.US.KALU | B24: News | C24: =IFERROR(RTD("cqg.rtd", ,"ContractData",A24, "LongDescription",, "T")&" ("&RIGHT(A24,LEN(A24)-5)&")","") -> Daiser Aluminum Corporation (KALU) | H24: =IFERROR(RTD("cqg.rtd", ,"ContractData",A24, "LastTradeToday",, "T"),"") -> 75.96 | I24: =IFERROR(RTD("cqg.rtd", ,"ContractData",A24, "NetLastTradeToday",, "T"),"") -> 0.42 | J24: =IFERROR(RTD("cqg.rtd", ,"ContractData",A24, "PerCentNetLastTrade",, "T")/100,"") -> 0.005559968229 | K24: =IFERROR(I24/RTD("cqg.rtd",,"StudyData",A24, "ATR", "MaType=Sim,Period=10", "ATR","D","-1","ALL",,,"FALSE","T")/100,"") -> 0.001746361746 | L24: =IFERROR(RTD("cqg.rtd", ,"ContractData",A24, "OPen",, "T"),"") -> 75.96 | M24: =IFERROR(RTD("cqg.rtd", ,"ContractData", A24, "HIgh",, "T"),"") -> 75.96 | N24: =IFERROR(RTD("cqg.rtd", ,"ContractData",A24, "LOw",, "T"),"") -> 75.96 | O24: =IFERROR(RTD("cqg.rtd", ,"ContractData",A24, "T_CVol",, "T"),"") -> 13692 | Q24: =IFERROR(O24/RTD("cqg.rtd",,"StudyData",A24, "MA", "InputChoice=Vol,MAType=Sim,Period=21", "MA","D","-1","all",,,,"T"),"") -> 0.09831985789 | R24: =XME!R7 -> https://finance.yahoo.com/quote/KALU
A25: =TRIM(XME!O8) -> S.US.IE | B25: News | C25: =IFERROR(RTD("cqg.rtd", ,"ContractData",A25, "LongDescription",, "T")&" ("&RIGHT(A25,LEN(A25)-5)&")","") -> Ivanhoe Electric Inc. (IE) | H25: =IFERROR(RTD("cqg.rtd", ,"ContractData",A25, "LastTradeToday",, "T"),"") -> 9.92 | I25: =IFERROR(RTD("cqg.rtd", ,"ContractData",A25, "NetLastTradeToday",, "T"),"") -> 0.04 | J25: =IFERROR(RTD("cqg.rtd", ,"ContractData",A25, "PerCentNetLastTrade",, "T")/100,"") -> 0.004048582996 | K25: =IFERROR(I25/RTD("cqg.rtd",,"StudyData",A25, "ATR", "MaType=Sim,Period=10", "ATR","D","-1","ALL",,,"FALSE","T")/100,"") -> 0.0009090909091 | L25: =IFERROR(RTD("cqg.rtd", ,"ContractData",A25, "OPen",, "T"),"") -> 9.91 | M25: =IFERROR(RTD("cqg.rtd", ,"ContractData", A25, "HIgh",, "T"),"") -> 9.92 | N25: =IFERROR(RTD("cqg.rtd", ,"ContractData",A25, "LOw",, "T"),"") -> 9.91 | O25: =IFERROR(RTD("cqg.rtd", ,"ContractData",A25, "T_CVol",, "T"),"") -> 53917 | Q25: =IFERROR(O25/RTD("cqg.rtd",,"StudyData",A25, "MA", "InputChoice=Vol,MAType=Sim,Period=21", "MA","D","-1","all",,,,"T"),"") -> 0.03721378186 | R25: =XME!R8 -> https://finance.yahoo.com/quote/IE
A26: =TRIM(XME!O9) -> S.US.RS | B26: News | C26: =IFERROR(RTD("cqg.rtd", ,"ContractData",A26, "LongDescription",, "T")&" ("&RIGHT(A26,LEN(A26)-5)&")","") -> Reliance, Inc. (RS) | H26: =IFERROR(RTD("cqg.rtd", ,"ContractData",A26, "LastTradeToday",, "T"),"") -> 291.4 | I26: =IFERROR(RTD("cqg.rtd", ,"ContractData",A26, "NetLastTradeToday",, "T"),"") -> 1.13 | J26: =IFERROR(RTD("cqg.rtd", ,"ContractData",A26, "PerCentNetLastTrade",, "T")/100,"") -> 0.003892927275 | K26: =IFERROR(I26/RTD("cqg.rtd",,"StudyData",A26, "ATR", "MaType=Sim,Period=10", "ATR","D","-1","ALL",,,"FALSE","T")/100,"") -> 0.002 | L26: =IFERROR(RTD("cqg.rtd", ,"ContractData",A26, "OPen",, "T"),"") -> 291.4 | M26: =IFERROR(RTD("cqg.rtd", ,"ContractData", A26, "HIgh",, "T"),"") -> 291.4 | N26: =IFERROR(RTD("cqg.rtd", ,"ContractData",A26, "LOw",, "T"),"") -> 291.4 | O26: =IFERROR(RTD("cqg.rtd", ,"ContractData",A26, "T_CVol",, "T"),"") -> 3912 | Q26: =IFERROR(O26/RTD("cqg.rtd",,"StudyData",A26, "MA", "InputChoice=Vol,MAType=Sim,Period=21", "MA","D","-1","all",,,,"T"),"") -> 0.008126348135 | R26: =XME!R9 -> https://finance.yahoo.com/quote/RS
A27: =TRIM(XME!O10) -> S.US.CNR | B27: News | C27: =IFERROR(RTD("cqg.rtd", ,"ContractData",A27, "LongDescription",, "T")&" ("&RIGHT(A27,LEN(A27)-5)&")","") -> Core Natural Resources, Inc. (CNR) | H27: =IFERROR(RTD("cqg.rtd", ,"ContractData",A27, "LastTradeToday",, "T"),"") -> 75 | I27: =IFERROR(RTD("cqg.rtd", ,"ContractData",A27, "NetLastTradeToday",, "T"),"") -> 0.23 | J27: =IFERROR(RTD("cqg.rtd", ,"ContractData",A27, "PerCentNetLastTrade",, "T")/100,"") -> 0.00307610004 | K27: =IFERROR(I27/RTD("cqg.rtd",,"StudyData",A27, "ATR", "MaType=Sim,Period=10", "ATR","D","-1","ALL",,,"FALSE","T")/100,"") -> 0.0005859872611 | L27: =IFERROR(RTD("cqg.rtd", ,"ContractData",A27, "OPen",, "T"),"") -> 75 | M27: =IFERROR(RTD("cqg.rtd", ,"ContractData", A27, "HIgh",, "T"),"") -> 75.4 | N27: =IFERROR(RTD("cqg.rtd", ,"ContractData",A27, "LOw",, "T"),"") -> 74.95 | O27: =IFERROR(RTD("cqg.rtd", ,"ContractData",A27, "T_CVol",, "T"),"") -> 31040 | Q27: =IFERROR(O27/RTD("cqg.rtd",,"StudyData",A27, "MA", "InputChoice=Vol,MAType=Sim,Period=21", "MA","D","-1","all",,,,"T"),"") -> 0.03692998011 | R27: =XME!R10 -> https://finance.yahoo.com/quote/CNR
A28: =TRIM(XME!O11) -> S.US.WS | B28: News | C28: =IFERROR(RTD("cqg.rtd", ,"ContractData",A28, "LongDescription",, "T")&" ("&RIGHT(A28,LEN(A28)-5)&")","") -> Worthington Steel, Inc. (WS) | H28: =IFERROR(RTD("cqg.rtd", ,"ContractData",A28, "LastTradeToday",, "T"),"") -> 32.37 | I28: =IFERROR(RTD("cqg.rtd", ,"ContractData",A28, "NetLastTradeToday",, "T"),"") -> 0.08 | J28: =IFERROR(RTD("cqg.rtd", ,"ContractData",A28, "PerCentNetLastTrade",, "T")/100,"") -> 0.002477547228 | K28: =IFERROR(I28/RTD("cqg.rtd",,"StudyData",A28, "ATR", "MaType=Sim,Period=10", "ATR","D","-1","ALL",,,"FALSE","T")/100,"") -> 0.0007874015748 | L28: =IFERROR(RTD("cqg.rtd", ,"ContractData",A28, "OPen",, "T"),"") -> 32.47 | M28: =IFERROR(RTD("cqg.rtd", ,"ContractData", A28, "HIgh",, "T"),"") -> 32.47 | N28: =IFERROR(RTD("cqg.rtd", ,"ContractData",A28, "LOw",, "T"),"") -> 32.37 | O28: =IFERROR(RTD("cqg.rtd", ,"ContractData",A28, "T_CVol",, "T"),"") -> 32794 | Q28: =IFERROR(O28/RTD("cqg.rtd",,"StudyData",A28, "MA", "InputChoice=Vol,MAType=Sim,Period=21", "MA","D","-1","all",,,,"T"),"") -> 0.1525419224 | R28: =XME!R11 -> https://finance.yahoo.com/quote/WS
A29: =TRIM(XME!O12) -> S.US.CMC | B29: News | C29: =IFERROR(RTD("cqg.rtd", ,"ContractData",A29, "LongDescription",, "T")&" ("&RIGHT(A29,LEN(A29)-5)&")","") -> Commercial Metals Co (CMC) | H29: =IFERROR(RTD("cqg.rtd", ,"ContractData",A29, "LastTradeToday",, "T"),"") -> 57.27 | I29: =IFERROR(RTD("cqg.rtd", ,"ContractData",A29, "NetLastTradeToday",, "T"),"") -> 0.14 | J29: =IFERROR(RTD("cqg.rtd", ,"ContractData",A29, "PerCentNetLastTrade",, "T")/100,"") -> 0.002450551374 | K29: =IFERROR(I29/RTD("cqg.rtd",,"StudyData",A29, "ATR", "MaType=Sim,Period=10", "ATR","D","-1","ALL",,,"FALSE","T")/100,"") -> 0.0007764836384 | L29: =IFERROR(RTD("cqg.rtd", ,"ContractData",A29, "OPen",, "T"),"") -> 57.8 | M29: =IFERROR(RTD("cqg.rtd", ,"ContractData", A29, "HIgh",, "T"),"") -> 57.8 | N29: =IFERROR(RTD("cqg.rtd", ,"ContractData",A29, "LOw",, "T"),"") -> 57.27 | O29: =IFERROR(RTD("cqg.rtd", ,"ContractData",A29, "T_CVol",, "T"),"") -> 67602 | Q29: =IFERROR(O29/RTD("cqg.rtd",,"StudyData",A29, "MA", "InputChoice=Vol,MAType=Sim,Period=21", "MA","D","-1","all",,,,"T"),"") -> 0.07574660299 | R29: =XME!R12 -> https://finance.yahoo.com/quote/CMC
A30: =TRIM(XME!O13) -> S.US.SPY | B30: News | C30: =IFERROR(RTD("cqg.rtd", ,"ContractData",A30, "LongDescription",, "T")&" ("&RIGHT(A30,LEN(A30)-5)&")","") -> SPDR S&P 500 (SPY) | H30: =IFERROR(RTD("cqg.rtd", ,"ContractData",A30, "LastTradeToday",, "T"),"") -> 645.42 | I30: =IFERROR(RTD("cqg.rtd", ,"ContractData",A30, "NetLastTradeToday",, "T"),"") -> 1.19 | J30: =IFERROR(RTD("cqg.rtd", ,"ContractData",A30, "PerCentNetLastTrade",, "T")/100,"") -> 0.001847166385 | K30: =IFERROR(I30/RTD("cqg.rtd",,"StudyData",A30, "ATR", "MaType=Sim,Period=10", "ATR","D","-1","ALL",,,"FALSE","T")/100,"") -> 0.001846679081 | L30: =IFERROR(RTD("cqg.rtd", ,"ContractData",A30, "OPen",, "T"),"") -> 645.99 | M30: =IFERROR(RTD("cqg.rtd", ,"ContractData", A30, "HIgh",, "T"),"") -> 646.09 | N30: =IFERROR(RTD("cqg.rtd", ,"ContractData",A30, "LOw",, "T"),"") -> 645.2 | O30: =IFERROR(RTD("cqg.rtd", ,"ContractData",A30, "T_CVol",, "T"),"") -> 2476884 | Q30: =IFERROR(O30/RTD("cqg.rtd",,"StudyData",A30, "MA", "InputChoice=Vol,MAType=Sim,Period=21", "MA","D","-1","all",,,,"T"),"") -> 0.03507797672 | R30: =XME!R13 -> https://finance.yahoo.com/quote/SPY
A31: =TRIM(XME!O14) -> S.US.MTRN | B31: News | C31: =IFERROR(RTD("cqg.rtd", ,"ContractData",A31, "LongDescription",, "T")&" ("&RIGHT(A31,LEN(A31)-5)&")","") -> Materion Corporation (MTRN) | H31: =IFERROR(RTD("cqg.rtd", ,"ContractData",A31, "LastTradeToday",, "T"),"") -> 112.89 | I31: =IFERROR(RTD("cqg.rtd", ,"ContractData",A31, "NetLastTradeToday",, "T"),"") -> 0.2 | J31: =IFERROR(RTD("cqg.rtd", ,"ContractData",A31, "PerCentNetLastTrade",, "T")/100,"") -> 0.001774780371 | K31: =IFERROR(I31/RTD("cqg.rtd",,"StudyData",A31, "ATR", "MaType=Sim,Period=10", "ATR","D","-1","ALL",,,"FALSE","T")/100,"") -> 0.0005627462015 | L31: =IFERROR(RTD("cqg.rtd", ,"ContractData",A31, "OPen",, "T"),"") -> 112.89 | M31: =IFERROR(RTD("cqg.rtd", ,"ContractData", A31, "HIgh",, "T"),"") -> 112.89 | N31: =IFERROR(RTD("cqg.rtd", ,"ContractData",A31, "LOw",, "T"),"") -> 112.89 | O31: =IFERROR(RTD("cqg.rtd", ,"ContractData",A31, "T_CVol",, "T"),"") -> 11883 | Q31: =IFERROR(O31/RTD("cqg.rtd",,"StudyData",A31, "MA", "InputChoice=Vol,MAType=Sim,Period=21", "MA","D","-1","all",,,,"T"),"") -> 0.04235730128 | R31: =XME!R14 -> https://finance.yahoo.com/quote/MTRN
A32: =TRIM(XME!O15) -> S.US.AA | B32: News | C32: =IFERROR(RTD("cqg.rtd", ,"ContractData",A32, "LongDescription",, "T")&" ("&RIGHT(A32,LEN(A32)-5)&")","") -> ALCOA Inc. (AA) | H32: =IFERROR(RTD("cqg.rtd", ,"ContractData",A32, "LastTradeToday",, "T"),"") -> 31.34 | I32: =IFERROR(RTD("cqg.rtd", ,"ContractData",A32, "NetLastTradeToday",, "T"),"") -> 0.01 | J32: =IFERROR(RTD("cqg.rtd", ,"ContractData",A32, "PerCentNetLastTrade",, "T")/100,"") -> 0.0003191828918 | K32: =IFERROR(I32/RTD("cqg.rtd",,"StudyData",A32, "ATR", "MaType=Sim,Period=10", "ATR","D","-1","ALL",,,"FALSE","T")/100,"") -> 8.298755187e-05 | L32: =IFERROR(RTD("cqg.rtd", ,"ContractData",A32, "OPen",, "T"),"") -> 31.39 | M32: =IFERROR(RTD("cqg.rtd", ,"ContractData", A32, "HIgh",, "T"),"") -> 31.54 | N32: =IFERROR(RTD("cqg.rtd", ,"ContractData",A32, "LOw",, "T"),"") -> 31.33 | O32: =IFERROR(RTD("cqg.rtd", ,"ContractData",A32, "T_CVol",, "T"),"") -> 158878 | Q32: =IFERROR(O32/RTD("cqg.rtd",,"StudyData",A32, "MA", "InputChoice=Vol,MAType=Sim,Period=21", "MA","D","-1","all",,,,"T"),"") -> 0.02608661937 | R32: =XME!R15 -> https://finance.yahoo.com/quote/AA
A33: =TRIM(XME!O16) -> S.US.HCC | B33: News | C33: =IFERROR(RTD("cqg.rtd", ,"ContractData",A33, "LongDescription",, "T")&" ("&RIGHT(A33,LEN(A33)-5)&")","") -> Warrior Met Coal, Inc. (HCC) | H33: =IFERROR(RTD("cqg.rtd", ,"ContractData",A33, "LastTradeToday",, "T"),"") -> 61.53 | I33: =IFERROR(RTD("cqg.rtd", ,"ContractData",A33, "NetLastTradeToday",, "T"),"") -> -0.06 | J33: =IFERROR(RTD("cqg.rtd", ,"ContractData",A33, "PerCentNetLastTrade",, "T")/100,"") -> -0.0009741841208 | K33: =IFERROR(I33/RTD("cqg.rtd",,"StudyData",A33, "ATR", "MaType=Sim,Period=10", "ATR","D","-1","ALL",,,"FALSE","T")/100,"") -> -0.0001960784314 | L33: =IFERROR(RTD("cqg.rtd", ,"ContractData",A33, "OPen",, "T"),"") -> 61.59 | M33: =IFERROR(RTD("cqg.rtd", ,"ContractData", A33, "HIgh",, "T"),"") -> 61.59 | N33: =IFERROR(RTD("cqg.rtd", ,"ContractData",A33, "LOw",, "T"),"") -> 61.53 | O33: =IFERROR(RTD("cqg.rtd", ,"ContractData",A33, "T_CVol",, "T"),"") -> 45848 | Q33: =IFERROR(O33/RTD("cqg.rtd",,"StudyData",A33, "MA", "InputChoice=Vol,MAType=Sim,Period=21", "MA","D","-1","all",,,,"T"),"") -> 0.03523686586 | R33: =XME!AH1 -> https://finance.yahoo.com/quote/HCC
A34: =TRIM(XME!O17) -> S.US.CMP | B34: News | C34: =IFERROR(RTD("cqg.rtd", ,"ContractData",A34, "LongDescription",, "T")&" ("&RIGHT(A34,LEN(A34)-5)&")","") -> Compass Minerals Intl (CMP) | H34: =IFERROR(RTD("cqg.rtd", ,"ContractData",A34, "LastTradeToday",, "T"),"") -> 18.71 | I34: =IFERROR(RTD("cqg.rtd", ,"ContractData",A34, "NetLastTradeToday",, "T"),"") -> -0.03 | J34: =IFERROR(RTD("cqg.rtd", ,"ContractData",A34, "PerCentNetLastTrade",, "T")/100,"") -> -0.001600853789 | K34: =IFERROR(I34/RTD("cqg.rtd",,"StudyData",A34, "ATR", "MaType=Sim,Period=10", "ATR","D","-1","ALL",,,"FALSE","T")/100,"") -> -0.0003099173554 | L34: =IFERROR(RTD("cqg.rtd", ,"ContractData",A34, "OPen",, "T"),"") -> 18.67 | M34: =IFERROR(RTD("cqg.rtd", ,"ContractData", A34, "HIgh",, "T"),"") -> 18.71 | N34: =IFERROR(RTD("cqg.rtd", ,"ContractData",A34, "LOw",, "T"),"") -> 18.55 | O34: =IFERROR(RTD("cqg.rtd", ,"ContractData",A34, "T_CVol",, "T"),"") -> 36702 | Q34: =IFERROR(O34/RTD("cqg.rtd",,"StudyData",A34, "MA", "InputChoice=Vol,MAType=Sim,Period=21", "MA","D","-1","all",,,,"T"),"") -> 0.07522997478 | R34: =XME!AH2 -> https://finance.yahoo.com/quote/CMP
A35: =TRIM(XME!O18) -> S.US.CDE | B35: News | C35: =IFERROR(RTD("cqg.rtd", ,"ContractData",A35, "LongDescription",, "T")&" ("&RIGHT(A35,LEN(A35)-5)&")","") -> Coeur Mining Inc Delaware (CDE) | H35: =IFERROR(RTD("cqg.rtd", ,"ContractData",A35, "LastTradeToday",, "T"),"") -> 11.57 | I35: =IFERROR(RTD("cqg.rtd", ,"ContractData",A35, "NetLastTradeToday",, "T"),"") -> -0.02 | J35: =IFERROR(RTD("cqg.rtd", ,"ContractData",A35, "PerCentNetLastTrade",, "T")/100,"") -> -0.001725625539 | K35: =IFERROR(I35/RTD("cqg.rtd",,"StudyData",A35, "ATR", "MaType=Sim,Period=10", "ATR","D","-1","ALL",,,"FALSE","T")/100,"") -> -0.0003472222222 | L35: =IFERROR(RTD("cqg.rtd", ,"ContractData",A35, "OPen",, "T"),"") -> 11.66 | M35: =IFERROR(RTD("cqg.rtd", ,"ContractData", A35, "HIgh",, "T"),"") -> 11.66 | N35: =IFERROR(RTD("cqg.rtd", ,"ContractData",A35, "LOw",, "T"),"") -> 11.51 | O35: =IFERROR(RTD("cqg.rtd", ,"ContractData",A35, "T_CVol",, "T"),"") -> 441260 | Q35: =IFERROR(O35/RTD("cqg.rtd",,"StudyData",A35, "MA", "InputChoice=Vol,MAType=Sim,Period=21", "MA","D","-1","all",,,,"T"),"") -> 0.03543331832 | R35: =XME!AH3 -> https://finance.yahoo.com/quote/CDE
A36: =TRIM(XME!O19) -> S.US.AMR | B36: News | C36: =IFERROR(RTD("cqg.rtd", ,"ContractData",A36, "LongDescription",, "T")&" ("&RIGHT(A36,LEN(A36)-5)&")","") -> Alpha Metallurgical Resources, Inc. (AMR) | H36: =IFERROR(RTD("cqg.rtd", ,"ContractData",A36, "LastTradeToday",, "T"),"") -> 159.17 | I36: =IFERROR(RTD("cqg.rtd", ,"ContractData",A36, "NetLastTradeToday",, "T"),"") -> -0.59 | J36: =IFERROR(RTD("cqg.rtd", ,"ContractData",A36, "PerCentNetLastTrade",, "T")/100,"") -> -0.003693039559 | K36: =IFERROR(I36/RTD("cqg.rtd",,"StudyData",A36, "ATR", "MaType=Sim,Period=10", "ATR","D","-1","ALL",,,"FALSE","T")/100,"") -> -0.0005963812797 | L36: =IFERROR(RTD("cqg.rtd", ,"ContractData",A36, "OPen",, "T"),"") -> 159.33 | M36: =IFERROR(RTD("cqg.rtd", ,"ContractData", A36, "HIgh",, "T"),"") -> 159.33 | N36: =IFERROR(RTD("cqg.rtd", ,"ContractData",A36, "LOw",, "T"),"") -> 159.17 | O36: =IFERROR(RTD("cqg.rtd", ,"ContractData",A36, "T_CVol",, "T"),"") -> 12450 | Q36: =IFERROR(O36/RTD("cqg.rtd",,"StudyData",A36, "MA", "InputChoice=Vol,MAType=Sim,Period=21", "MA","D","-1","all",,,,"T"),"") -> 0.02786857078 | R36: =XME!AH4 -> https://finance.yahoo.com/quote/AMR
A37: =TRIM(XME!O20) -> S.US.NEM | B37: News | C37: =IFERROR(RTD("cqg.rtd", ,"ContractData",A37, "LongDescription",, "T")&" ("&RIGHT(A37,LEN(A37)-5)&")","") -> Newmont Goldcorp Corporation (NEM) | H37: =IFERROR(RTD("cqg.rtd", ,"ContractData",A37, "LastTradeToday",, "T"),"") -> 68.21 | I37: =IFERROR(RTD("cqg.rtd", ,"ContractData",A37, "NetLastTradeToday",, "T"),"") -> -0.27 | J37: =IFERROR(RTD("cqg.rtd", ,"ContractData",A37, "PerCentNetLastTrade",, "T")/100,"") -> -0.003942757009 | K37: =IFERROR(I37/RTD("cqg.rtd",,"StudyData",A37, "ATR", "MaType=Sim,Period=10", "ATR","D","-1","ALL",,,"FALSE","T")/100,"") -> -0.001514301739 | L37: =IFERROR(RTD("cqg.rtd", ,"ContractData",A37, "OPen",, "T"),"") -> 68.77 | M37: =IFERROR(RTD("cqg.rtd", ,"ContractData", A37, "HIgh",, "T"),"") -> 68.77 | N37: =IFERROR(RTD("cqg.rtd", ,"ContractData",A37, "LOw",, "T"),"") -> 68.09 | O37: =IFERROR(RTD("cqg.rtd", ,"ContractData",A37, "T_CVol",, "T"),"") -> 554099 | Q37: =IFERROR(O37/RTD("cqg.rtd",,"StudyData",A37, "MA", "InputChoice=Vol,MAType=Sim,Period=21", "MA","D","-1","all",,,,"T"),"") -> 0.04999565742 | R37: =XME!AH5 -> https://finance.yahoo.com/quote/NEM
A38: =TRIM(XME!O21) -> S.US.BTU | B38: News | C38: =IFERROR(RTD("cqg.rtd", ,"ContractData",A38, "LongDescription",, "T")&" ("&RIGHT(A38,LEN(A38)-5)&")","") -> Peabody Energy (BTU) | H38: =IFERROR(RTD("cqg.rtd", ,"ContractData",A38, "LastTradeToday",, "T"),"") -> 17.89 | I38: =IFERROR(RTD("cqg.rtd", ,"ContractData",A38, "NetLastTradeToday",, "T"),"") -> -0.08 | J38: =IFERROR(RTD("cqg.rtd", ,"ContractData",A38, "PerCentNetLastTrade",, "T")/100,"") -> -0.004451864218 | K38: =IFERROR(I38/RTD("cqg.rtd",,"StudyData",A38, "ATR", "MaType=Sim,Period=10", "ATR","D","-1","ALL",,,"FALSE","T")/100,"") -> -0.0009132420091 | L38: =IFERROR(RTD("cqg.rtd", ,"ContractData",A38, "OPen",, "T"),"") -> 17.98 | M38: =IFERROR(RTD("cqg.rtd", ,"ContractData", A38, "HIgh",, "T"),"") -> 17.98 | N38: =IFERROR(RTD("cqg.rtd", ,"ContractData",A38, "LOw",, "T"),"") -> 17.85 | O38: =IFERROR(RTD("cqg.rtd", ,"ContractData",A38, "T_CVol",, "T"),"") -> 80626 | Q38: =IFERROR(O38/RTD("cqg.rtd",,"StudyData",A38, "MA", "InputChoice=Vol,MAType=Sim,Period=21", "MA","D","-1","all",,,,"T"),"") -> 0.01393165232 | R38: =XME!AH6 -> https://finance.yahoo.com/quote/BTU
A39: =TRIM(XME!O22) -> S.US.CRS | B39: News | C39: =IFERROR(RTD("cqg.rtd", ,"ContractData",A39, "LongDescription",, "T")&" ("&RIGHT(A39,LEN(A39)-5)&")","") -> Carpenter Technology Corp (CRS) | H39: =IFERROR(RTD("cqg.rtd", ,"ContractData",A39, "LastTradeToday",, "T"),"") -> 245.27 | I39: =IFERROR(RTD("cqg.rtd", ,"ContractData",A39, "NetLastTradeToday",, "T"),"") -> -1.2 | J39: =IFERROR(RTD("cqg.rtd", ,"ContractData",A39, "PerCentNetLastTrade",, "T")/100,"") -> -0.004868746703 | K39: =IFERROR(I39/RTD("cqg.rtd",,"StudyData",A39, "ATR", "MaType=Sim,Period=10", "ATR","D","-1","ALL",,,"FALSE","T")/100,"") -> -0.001211876389 | L39: =IFERROR(RTD("cqg.rtd", ,"ContractData",A39, "OPen",, "T"),"") -> 246.47 | M39: =IFERROR(RTD("cqg.rtd", ,"ContractData", A39, "HIgh",, "T"),"") -> 246.72 | N39: =IFERROR(RTD("cqg.rtd", ,"ContractData",A39, "LOw",, "T"),"") -> 245.27 | O39: =IFERROR(RTD("cqg.rtd", ,"ContractData",A39, "T_CVol",, "T"),"") -> 13568 | Q39: =IFERROR(O39/RTD("cqg.rtd",,"StudyData",A39, "MA", "InputChoice=Vol,MAType=Sim,Period=21", "MA","D","-1","all",,,,"T"),"") -> 0.01447787222 | R39: =XME!AH7 -> https://finance.yahoo.com/quote/CRS
A40: =TRIM(XME!O23) -> S.US.UEC | B40: News | C40: =IFERROR(RTD("cqg.rtd", ,"ContractData",A40, "LongDescription",, "T")&" ("&RIGHT(A40,LEN(A40)-5)&")","") -> Uranium Energy Corp (UEC) | H40: =IFERROR(RTD("cqg.rtd", ,"ContractData",A40, "LastTradeToday",, "T"),"") -> 10.21 | I40: =IFERROR(RTD("cqg.rtd", ,"ContractData",A40, "NetLastTradeToday",, "T"),"") -> -0.05 | J40: =IFERROR(RTD("cqg.rtd", ,"ContractData",A40, "PerCentNetLastTrade",, "T")/100,"") -> -0.004873294347 | K40: =IFERROR(I40/RTD("cqg.rtd",,"StudyData",A40, "ATR", "MaType=Sim,Period=10", "ATR","D","-1","ALL",,,"FALSE","T")/100,"") -> -0.0008278145695 | L40: =IFERROR(RTD("cqg.rtd", ,"ContractData",A40, "OPen",, "T"),"") -> 10.25 | M40: =IFERROR(RTD("cqg.rtd", ,"ContractData", A40, "HIgh",, "T"),"") -> 10.33 | N40: =IFERROR(RTD("cqg.rtd", ,"ContractData",A40, "LOw",, "T"),"") -> 10.08 | O40: =IFERROR(RTD("cqg.rtd", ,"ContractData",A40, "T_CVol",, "T"),"") -> 507631 | Q40: =IFERROR(O40/RTD("cqg.rtd",,"StudyData",A40, "MA", "InputChoice=Vol,MAType=Sim,Period=21", "MA","D","-1","all",,,,"T"),"") -> 0.03571409164 | R40: =XME!AH8 -> https://finance.yahoo.com/quote/UEC
A41: =TRIM(XME!O24) -> S.US.CENX | B41: News | C41: =IFERROR(RTD("cqg.rtd", ,"ContractData",A41, "LongDescription",, "T")&" ("&RIGHT(A41,LEN(A41)-5)&")","") -> Century Aluminum Co (CENX) | H41: =IFERROR(RTD("cqg.rtd", ,"ContractData",A41, "LastTradeToday",, "T"),"") -> 23.43 | I41: =IFERROR(RTD("cqg.rtd", ,"ContractData",A41, "NetLastTradeToday",, "T"),"") -> -0.13 | J41: =IFERROR(RTD("cqg.rtd", ,"ContractData",A41, "PerCentNetLastTrade",, "T")/100,"") -> -0.005517826825 | K41: =IFERROR(I41/RTD("cqg.rtd",,"StudyData",A41, "ATR", "MaType=Sim,Period=10", "ATR","D","-1","ALL",,,"FALSE","T")/100,"") -> -0.001157613535 | L41: =IFERROR(RTD("cqg.rtd", ,"ContractData",A41, "OPen",, "T"),"") -> 23.65 | M41: =IFERROR(RTD("cqg.rtd", ,"ContractData", A41, "HIgh",, "T"),"") -> 23.77 | N41: =IFERROR(RTD("cqg.rtd", ,"ContractData",A41, "LOw",, "T"),"") -> 23.41 | O41: =IFERROR(RTD("cqg.rtd", ,"ContractData",A41, "T_CVol",, "T"),"") -> 69094 | Q41: =IFERROR(O41/RTD("cqg.rtd",,"StudyData",A41, "MA", "InputChoice=Vol,MAType=Sim,Period=21", "MA","D","-1","all",,,,"T"),"") -> 0.04116395363 | R41: =XME!AH9 -> https://finance.yahoo.com/quote/CENX
A42: =TRIM(XME!O25) -> S.US.RGLD | B42: News | C42: =IFERROR(RTD("cqg.rtd", ,"ContractData",A42, "LongDescription",, "T")&" ("&RIGHT(A42,LEN(A42)-5)&")","") -> Royal Gold Inc (RGLD) | H42: =IFERROR(RTD("cqg.rtd", ,"ContractData",A42, "LastTradeToday",, "T"),"") -> 168.64 | I42: =IFERROR(RTD("cqg.rtd", ,"ContractData",A42, "NetLastTradeToday",, "T"),"") -> -0.97 | J42: =IFERROR(RTD("cqg.rtd", ,"ContractData",A42, "PerCentNetLastTrade",, "T")/100,"") -> -0.005719002417 | K42: =IFERROR(I42/RTD("cqg.rtd",,"StudyData",A42, "ATR", "MaType=Sim,Period=10", "ATR","D","-1","ALL",,,"FALSE","T")/100,"") -> -0.002146017699 | L42: =IFERROR(RTD("cqg.rtd", ,"ContractData",A42, "OPen",, "T"),"") -> 169.18 | M42: =IFERROR(RTD("cqg.rtd", ,"ContractData", A42, "HIgh",, "T"),"") -> 170.1 | N42: =IFERROR(RTD("cqg.rtd", ,"ContractData",A42, "LOw",, "T"),"") -> 168.23 | O42: =IFERROR(RTD("cqg.rtd", ,"ContractData",A42, "T_CVol",, "T"),"") -> 55572 | Q42: =IFERROR(O42/RTD("cqg.rtd",,"StudyData",A42, "MA", "InputChoice=Vol,MAType=Sim,Period=21", "MA","D","-1","all",,,,"T"),"") -> 0.06206663165 | R42: =XME!AH10 -> https://finance.yahoo.com/quote/RGLD
A43: =TRIM(XME!O26) -> S.US.MUX | B43: News | C43: =IFERROR(RTD("cqg.rtd", ,"ContractData",A43, "LongDescription",, "T")&" ("&RIGHT(A43,LEN(A43)-5)&")","") -> McEwen Inc. (MUX) | H43: =IFERROR(RTD("cqg.rtd", ,"ContractData",A43, "LastTradeToday",, "T"),"") -> 10.3 | I43: =IFERROR(RTD("cqg.rtd", ,"ContractData",A43, "NetLastTradeToday",, "T"),"") -> -0.09 | J43: =IFERROR(RTD("cqg.rtd", ,"ContractData",A43, "PerCentNetLastTrade",, "T")/100,"") -> -0.008662175168 | K43: =IFERROR(I43/RTD("cqg.rtd",,"StudyData",A43, "ATR", "MaType=Sim,Period=10", "ATR","D","-1","ALL",,,"FALSE","T")/100,"") -> -0.002050113895 | L43: =IFERROR(RTD("cqg.rtd", ,"ContractData",A43, "OPen",, "T"),"") -> 10.26 | M43: =IFERROR(RTD("cqg.rtd", ,"ContractData", A43, "HIgh",, "T"),"") -> 10.33 | N43: =IFERROR(RTD("cqg.rtd", ,"ContractData",A43, "LOw",, "T"),"") -> 10.26 | O43: =IFERROR(RTD("cqg.rtd", ,"ContractData",A43, "T_CVol",, "T"),"") -> 22999 | Q43: =IFERROR(O43/RTD("cqg.rtd",,"StudyData",A43, "MA", "InputChoice=Vol,MAType=Sim,Period=21", "MA","D","-1","all",,,,"T"),"") -> 0.02621599182 | R43: =XME!AH11 -> https://finance.yahoo.com/quote/MUX
A44: =TRIM(XME!O27) -> S.US.RYI | B44: News | C44: =IFERROR(RTD("cqg.rtd", ,"ContractData",A44, "LongDescription",, "T")&" ("&RIGHT(A44,LEN(A44)-5)&")","") -> Ryerson Holding Corporation (RYI) | H44: =IFERROR(RTD("cqg.rtd", ,"ContractData",A44, "LastTradeToday",, "T"),"") -> 21.71 | I44: =IFERROR(RTD("cqg.rtd", ,"ContractData",A44, "NetLastTradeToday",, "T"),"") -> -0.2 | J44: =IFERROR(RTD("cqg.rtd", ,"ContractData",A44, "PerCentNetLastTrade",, "T")/100,"") -> -0.00912825194 | K44: =IFERROR(I44/RTD("cqg.rtd",,"StudyData",A44, "ATR", "MaType=Sim,Period=10", "ATR","D","-1","ALL",,,"FALSE","T")/100,"") -> -0.002314814815 | L44: =IFERROR(RTD("cqg.rtd", ,"ContractData",A44, "OPen",, "T"),"") -> 22.09 | M44: =IFERROR(RTD("cqg.rtd", ,"ContractData", A44, "HIgh",, "T"),"") -> 22.09 | N44: =IFERROR(RTD("cqg.rtd", ,"ContractData",A44, "LOw",, "T"),"") -> 21.71 | O44: =IFERROR(RTD("cqg.rtd", ,"ContractData",A44, "T_CVol",, "T"),"") -> 20426 | Q44: =IFERROR(O44/RTD("cqg.rtd",,"StudyData",A44, "MA", "InputChoice=Vol,MAType=Sim,Period=21", "MA","D","-1","all",,,,"T"),"") -> 0.07980959387 | R44: =XME!AH12 -> https://finance.yahoo.com/quote/RYI
A45: =TRIM(XME!O28) -> S.US.HL | B45: News | C45: =IFERROR(RTD("cqg.rtd", ,"ContractData",A45, "LongDescription",, "T")&" ("&RIGHT(A45,LEN(A45)-5)&")","") -> Hecla Mining Co (HL) | H45: =IFERROR(RTD("cqg.rtd", ,"ContractData",A45, "LastTradeToday",, "T"),"") -> 7.58 | I45: =IFERROR(RTD("cqg.rtd", ,"ContractData",A45, "NetLastTradeToday",, "T"),"") -> -0.08 | J45: =IFERROR(RTD("cqg.rtd", ,"ContractData",A45, "PerCentNetLastTrade",, "T")/100,"") -> -0.01044386423 | K45: =IFERROR(I45/RTD("cqg.rtd",,"StudyData",A45, "ATR", "MaType=Sim,Period=10", "ATR","D","-1","ALL",,,"FALSE","T")/100,"") -> -0.002067183463 | L45: =IFERROR(RTD("cqg.rtd", ,"ContractData",A45, "OPen",, "T"),"") -> 7.67 | M45: =IFERROR(RTD("cqg.rtd", ,"ContractData", A45, "HIgh",, "T"),"") -> 7.71 | N45: =IFERROR(RTD("cqg.rtd", ,"ContractData",A45, "LOw",, "T"),"") -> 7.55 | O45: =IFERROR(RTD("cqg.rtd", ,"ContractData",A45, "T_CVol",, "T"),"") -> 830845 | Q45: =IFERROR(O45/RTD("cqg.rtd",,"StudyData",A45, "MA", "InputChoice=Vol,MAType=Sim,Period=21", "MA","D","-1","all",,,,"T"),"") -> 0.03890254729 | R45: =XME!AH13 -> https://finance.yahoo.com/quote/HL
A46: =TRIM(XME!O29) -> S.US.SXC | B46: News | C46: =IFERROR(RTD("cqg.rtd", ,"ContractData",A46, "LongDescription",, "T")&" ("&RIGHT(A46,LEN(A46)-5)&")","") -> Suncoke Energy, Inc. (SXC) | H46: =IFERROR(RTD("cqg.rtd", ,"ContractData",A46, "LastTradeToday",, "T"),"") -> 7.72 | I46: =IFERROR(RTD("cqg.rtd", ,"ContractData",A46, "NetLastTradeToday",, "T"),"") -> -0.11 | J46: =IFERROR(RTD("cqg.rtd", ,"ContractData",A46, "PerCentNetLastTrade",, "T")/100,"") -> -0.01404853129 | K46: =IFERROR(I46/RTD("cqg.rtd",,"StudyData",A46, "ATR", "MaType=Sim,Period=10", "ATR","D","-1","ALL",,,"FALSE","T")/100,"") -> -0.003741496599 | L46: =IFERROR(RTD("cqg.rtd", ,"ContractData",A46, "OPen",, "T"),"") -> 7.75 | M46: =IFERROR(RTD("cqg.rtd", ,"ContractData", A46, "HIgh",, "T"),"") -> 7.75 | N46: =IFERROR(RTD("cqg.rtd", ,"ContractData",A46, "LOw",, "T"),"") -> 7.72 | O46: =IFERROR(RTD("cqg.rtd", ,"ContractData",A46, "T_CVol",, "T"),"") -> 40988 | Q46: =IFERROR(O46/RTD("cqg.rtd",,"StudyData",A46, "MA", "InputChoice=Vol,MAType=Sim,Period=21", "MA","D","-1","all",,,,"T"),"") -> 0.03647153836 | R46: =XME!AH14 -> https://finance.yahoo.com/quote/SXC
A47: =TRIM(XME!O30) -> S.US.LEU | B47: News | C47: =IFERROR(RTD("cqg.rtd", ,"ContractData",A47, "LongDescription",, "T")&" ("&RIGHT(A47,LEN(A47)-5)&")","") -> Centrus Energy Corp. (LEU) | H47: =IFERROR(RTD("cqg.rtd", ,"ContractData",A47, "LastTradeToday",, "T"),"") -> 184.5 | I47: =IFERROR(RTD("cqg.rtd", ,"ContractData",A47, "NetLastTradeToday",, "T"),"") -> -4.58 | J47: =IFERROR(RTD("cqg.rtd", ,"ContractData",A47, "PerCentNetLastTrade",, "T")/100,"") -> -0.0242225513 | K47: =IFERROR(I47/RTD("cqg.rtd",,"StudyData",A47, "ATR", "MaType=Sim,Period=10", "ATR","D","-1","ALL",,,"FALSE","T")/100,"") -> -0.002105263158 | L47: =IFERROR(RTD("cqg.rtd", ,"ContractData",A47, "OPen",, "T"),"") -> 187 | M47: =IFERROR(RTD("cqg.rtd", ,"ContractData", A47, "HIgh",, "T"),"") -> 187.55 | N47: =IFERROR(RTD("cqg.rtd", ,"ContractData",A47, "LOw",, "T"),"") -> 183.68 | O47: =IFERROR(RTD("cqg.rtd", ,"ContractData",A47, "T_CVol",, "T"),"") -> 76031 | Q47: =IFERROR(O47/RTD("cqg.rtd",,"StudyData",A47, "MA", "InputChoice=Vol,MAType=Sim,Period=21", "MA","D","-1","all",,,,"T"),"") -> 0.05028813019 | R47: =XME!AH15 -> https://finance.yahoo.com/quote/LEU
C49: CQG Inc., Copyright © 2025 | G49: Designed by Thom Hartle | J49: The SPDR® S&P® Metals & Mining ETF seeks to provide investment results that correspond to the S&P® Metals and Mining Select Industry®. | Z49: =Z52 -> 50% of the stocks in the ETF are higher today
Z51: =XME!B99 -> 0.5 | AA51: of the stocks in the ETF are higher today
Z52: =TEXT(Display!Z51,"0%")&" "&Display!AA51 -> 50% of the stocks in the ETF are higher today

Sheet XME (hidden)
A1: S.US.AA | B1: =IF(J1>0,1,0) -> 1 | C1: S.US.AA | D1: =RTD("cqg.rtd", ,"ContractData",C1, "LongDescription",, "T") -> ALCOA Inc. | H1: =RTD("cqg.rtd", ,"ContractData",C1, "LastTradeToday",, "T") -> 31.34 | I1: =RTD("cqg.rtd", ,"ContractData",C1, "NetLastTradeToday",, "T") -> 0.01 | J1: =IFERROR(RTD("cqg.rtd", ,"ContractData",C1, "PerCentNetLastTrade",, "T")/100,"") -> 0.0003191828918 | K1: =RTD("cqg.rtd", ,"ContractData", C1, "T_CVol",, "T") -> 158878 | L1: 1 | M1: =IFERROR(RANK($J1,$J$1:J$30)+COUNTIF($J$1:J1,J1)-1,"") -> 15 | N1: =C1 -> S.US.AA | O1: =VLOOKUP($L1,$M$1:$N$30,2,FALSE) -> S.US.NUE | P1: =RTD("cqg.rtd", ,"ContractData",O1, "LongDescription",, "T") -> Nucor Corp | Q1: =IFERROR(RTD("cqg.rtd", ,"ContractData",O1, "PerCentNetLastTrade",, "T")/100,"") -> 0.02888811915 | R1: ="https://finance.yahoo.com/quote/"&RIGHT(O1,(LEN(O1)-5)) -> https://finance.yahoo.com/quote/NUE | T1: =IF(Q1>=0,Q1,NA()) -> 0.02888811915 | U1: =IF(Q1>=0,NA(),-1*Q1) ->  | W1: =IFERROR(RTD("cqg.rtd", ,"ContractData",O1, "LongDescription",, "T"),"") -> Nucor Corp | Z1: =IFERROR(T1,Q1) -> 0.02888811915 | AA1: =MIN(J1:J30) -> -0.0242225513 | AB1: 16 | AC1: =VLOOKUP($AB1,$M$1:$N$30,2,FALSE) -> S.US.HCC | AD1: =IFERROR(RTD("cqg.rtd", ,"ContractData",AC1, "PerCentNetLastTrade",, "T")/100,"") -> -0.0009741841208 | AE1: =IFERROR(RTD("cqg.rtd", ,"ContractData",AC1, "LongDescription",, "T"),"") -> Warrior Met Coal, Inc. | AF1: =IFERROR(U1,"") ->  | AG1: =IFERROR(AD1*-1,"") -> 0.0009741841208 | AH1: ="https://finance.yahoo.com/quote/"&RIGHT(AC1,(LEN(AC1)-5)) -> https://finance.yahoo.com/quote/HCC
A2: S.US.AMR | B2: =IF(J2>0,1,0) -> 0 | C2: S.US.AMR | D2: =RTD("cqg.rtd", ,"ContractData",C2, "LongDescription",, "T") -> Alpha Metallurgical Resources, Inc. | H2: =RTD("cqg.rtd", ,"ContractData",C2, "LastTradeToday",, "T") -> 159.17 | I2: =RTD("cqg.rtd", ,"ContractData",C2, "NetLastTradeToday",, "T") -> -0.59 | J2: =IFERROR(RTD("cqg.rtd", ,"ContractData",C2, "PerCentNetLastTrade",, "T")/100,"") -> -0.003693039559 | K2: =RTD("cqg.rtd", ,"ContractData", C2, "T_CVol",, "T") -> 12450 | L2: =L1+1 -> 2 | M2: =IFERROR(RANK($J2,$J$1:J$30)+COUNTIF($J$1:J2,J2)-1,"") -> 19 | N2: =C2 -> S.US.AMR | O2: =VLOOKUP($L2,$M$1:$N$30,2,FALSE) -> S.US.STLD | P2: =RTD("cqg.rtd", ,"ContractData",O2, "LongDescription",, "T") -> Steel Dynamics Inc | Q2: =IFERROR(RTD("cqg.rtd", ,"ContractData",O2, "PerCentNetLastTrade",, "T")/100,"") -> 0.01474741136 | R2: ="https://finance.yahoo.com/quote/"&RIGHT(O2,(LEN(O2)-5)) -> https://finance.yahoo.com/quote/STLD | T2: =IF(Q2>=0,Q2,NA()) -> 0.01474741136 | U2: =IF(Q2>=0,NA(),-1*Q2) ->  | W2: =IFERROR(RTD("cqg.rtd", ,"ContractData",O2, "LongDescription",, "T"),"") -> Steel Dynamics Inc | Z2: =IFERROR(T2,Q2) -> 0.01474741136 | AB2: =AB1+1 -> 17 | AC2: =VLOOKUP($AB2,$M$1:$N$30,2,FALSE) -> S.US.CMP | AD2: =IFERROR(RTD("cqg.rtd", ,"ContractData",AC2, "PerCentNetLastTrade",, "T")/100,"") -> -0.001600853789 | AE2: =IFERROR(RTD("cqg.rtd", ,"ContractData",AC2, "LongDescription",, "T"),"") -> Compass Minerals Intl | AF2: =IFERROR(U2,"") ->  | AG2: =IFERROR(AD2*-1,"") -> 0.001600853789 | AH2: ="https://finance.yahoo.com/quote/"&RIGHT(AC2,(LEN(AC2)-5)) -> https://finance.yahoo.com/quote/CMP
A3: S.US.BTU | B3: 0 | C3: S.US.BTU | D3: =RTD("cqg.rtd", ,"ContractData",C3, "LongDescription",, "T") -> Peabody Energy | H3: =RTD("cqg.rtd", ,"ContractData",C3, "LastTradeToday",, "T") -> 17.89 | I3: =RTD("cqg.rtd", ,"ContractData",C3, "NetLastTradeToday",, "T") -> -0.08 | J3: =IFERROR(RTD("cqg.rtd", ,"ContractData",C3, "PerCentNetLastTrade",, "T")/100,"") -> -0.004451864218 | K3: =RTD("cqg.rtd", ,"ContractData", C3, "T_CVol",, "T") -> 80626 | L3: =L2+1 -> 3 | M3: =IFERROR(RANK($J3,$J$1:J$30)+COUNTIF($J$1:J3,J3)-1,"") -> 21 | N3: S.US.BTU | O3: S.US.CLF | P3: =RTD("cqg.rtd", ,"ContractData",O3, "LongDescription",, "T") -> Cleveland-Cliffs Inc. | Q3: =IFERROR(RTD("cqg.rtd", ,"ContractData",O3, "PerCentNetLastTrade",, "T")/100,"") -> 0.008522727273 | R3: https://finance.yahoo.com/quote/CLF | T3: 0.008522727273 | W3: =IFERROR(RTD("cqg.rtd", ,"ContractData",O3, "LongDescription",, "T"),"") -> Cleveland-Cliffs Inc. | Z3: 0.008522727273 | AB3: =AB2+1 -> 18 | AC3: S.US.CDE | AD3: =IFERROR(RTD("cqg.rtd", ,"ContractData",AC3, "PerCentNetLastTrade",, "T")/100,"") -> -0.001725625539 | AE3: =IFERROR(RTD("cqg.rtd", ,"ContractData",AC3, "LongDescription",, "T"),"") -> Coeur Mining Inc Delaware | AG3: 0.001725625539 | AH3: https://finance.yahoo.com/quote/CDE
A4: S.US.CDE | B4: 0 | C4: S.US.CDE | D4: =RTD("cqg.rtd", ,"ContractData",C4, "LongDescription",, "T") -> Coeur Mining Inc Delaware | H4: =RTD("cqg.rtd", ,"ContractData",C4, "LastTradeToday",, "T") -> 11.57 | I4: =RTD("cqg.rtd", ,"ContractData",C4, "NetLastTradeToday",, "T") -> -0.02 | J4: =IFERROR(RTD("cqg.rtd", ,"ContractData",C4, "PerCentNetLastTrade",, "T")/100,"") -> -0.001725625539 | K4: =RTD("cqg.rtd", ,"ContractData", C4, "T_CVol",, "T") -> 441260 | L4: 4 | M4: =IFERROR(RANK($J4,$J$1:J$30)+COUNTIF($J$1:J4,J4)-1,"") -> 18 | N4: S.US.CDE | O4: S.US.FCX | P4: =RTD("cqg.rtd", ,"ContractData",O4, "LongDescription",, "T") -> Freeport-McMoRan Inc. | Q4: =IFERROR(RTD("cqg.rtd", ,"ContractData",O4, "PerCentNetLastTrade",, "T")/100,"") -> 0.007095553453 | R4: https://finance.yahoo.com/quote/FCX | T4: 0.007095553453 | W4: =IFERROR(RTD("cqg.rtd", ,"ContractData",O4, "LongDescription",, "T"),"") -> Freeport-McMoRan Inc. | Z4: 0.007095553453 | AB4: 19 | AC4: S.US.AMR | AD4: =IFERROR(RTD("cqg.rtd", ,"ContractData",AC4, "PerCentNetLastTrade",, "T")/100,"") -> -0.003693039559 | AE4: =IFERROR(RTD("cqg.rtd", ,"ContractData",AC4, "LongDescription",, "T"),"") -> Alpha Metallurgical Resources, Inc. | AG4: 0.003693039559 | AH4: https://finance.yahoo.com/quote/AMR
A5: S.US.CENX | B5: 0 | C5: S.US.CENX | D5: =RTD("cqg.rtd", ,"ContractData",C5, "LongDescription",, "T") -> Century Aluminum Co | H5: =RTD("cqg.rtd", ,"ContractData",C5, "LastTradeToday",, "T") -> 23.43 | I5: =RTD("cqg.rtd", ,"ContractData",C5, "NetLastTradeToday",, "T") -> -0.13 | J5: =IFERROR(RTD("cqg.rtd", ,"ContractData",C5, "PerCentNetLastTrade",, "T")/100,"") -> -0.005517826825 | K5: =RTD("cqg.rtd", ,"ContractData", C5, "T_CVol",, "T") -> 69094 | L5: 5 | M5: =IFERROR(RANK($J5,$J$1:J$30)+COUNTIF($J$1:J5,J5)-1,"") -> 24 | N5: S.US.CENX | O5: S.US.MP | P5: =RTD("cqg.rtd", ,"ContractData",O5, "LongDescription",, "T") -> MP Materials Corp. | Q5: =IFERROR(RTD("cqg.rtd", ,"ContractData",O5, "PerCentNetLastTrade",, "T")/100,"") -> 0.00679028467 | R5: https://finance.yahoo.com/quote/MP | T5: 0.00679028467 | W5: =IFERROR(RTD("cqg.rtd", ,"ContractData",O5, "LongDescription",, "T"),"") -> MP Materials Corp. | Z5: 0.00679028467 | AB5: 20 | AC5: S.US.NEM | AD5: =IFERROR(RTD("cqg.rtd", ,"ContractData",AC5, "PerCentNetLastTrade",, "T")/100,"") -> -0.003942757009 | AE5: =IFERROR(RTD("cqg.rtd", ,"ContractData",AC5, "LongDescription",, "T"),"") -> Newmont Goldcorp Corporation | AG5: 0.003942757009 | AH5: https://finance.yahoo.com/quote/NEM
A6: S.US.CLF | B6: 1 | C6: S.US.CLF | D6: =RTD("cqg.rtd", ,"ContractData",C6, "LongDescription",, "T") -> Cleveland-Cliffs Inc. | H6: =RTD("cqg.rtd", ,"ContractData",C6, "LastTradeToday",, "T") -> 10.65 | I6: =RTD("cqg.rtd", ,"ContractData",C6, "NetLastTradeToday",, "T") -> 0.09 | J6: =IFERROR(RTD("cqg.rtd", ,"ContractData",C6, "PerCentNetLastTrade",, "T")/100,"") -> 0.008522727273 | K6: =RTD("cqg.rtd", ,"ContractData", C6, "T_CVol",, "T") -> 699099 | L6: 6 | M6: =IFERROR(RANK($J6,$J$1:J$30)+COUNTIF($J$1:J6,J6)-1,"") -> 3 | N6: S.US.CLF | O6: S.US.MTUS | P6: =RTD("cqg.rtd", ,"ContractData",O6, "LongDescription",, "T") -> Metallus Inc. | Q6: =IFERROR(RTD("cqg.rtd", ,"ContractData",O6, "PerCentNetLastTrade",, "T")/100,"") -> 0.006273525721 | R6: https://finance.yahoo.com/quote/MTUS | T6: 0.006273525721 | W6: =IFERROR(RTD("cqg.rtd", ,"ContractData",O6, "LongDescription",, "T"),"") -> Metallus Inc. | Z6: 0.006273525721 | AB6: 21 | AC6: S.US.BTU | AD6: =IFERROR(RTD("cqg.rtd", ,"ContractData",AC6, "PerCentNetLastTrade",, "T")/100,"") -> -0.004451864218 | AE6: =IFERROR(RTD("cqg.rtd", ,"ContractData",AC6, "LongDescription",, "T"),"") -> Peabody Energy | AG6: 0.004451864218 | AH6: https://finance.yahoo.com/quote/BTU
A7: S.US.CMC | B7: 1 | C7: S.US.CMC | D7: =RTD("cqg.rtd", ,"ContractData",C7, "LongDescription",, "T") -> Commercial Metals Co | H7: =RTD("cqg.rtd", ,"ContractData",C7, "LastTradeToday",, "T") -> 57.27 | I7: =RTD("cqg.rtd", ,"ContractData",C7, "NetLastTradeToday",, "T") -> 0.14 | J7: =IFERROR(RTD("cqg.rtd", ,"ContractData",C7, "PerCentNetLastTrade",, "T")/100,"") -> 0.002450551374 | K7: =RTD("cqg.rtd", ,"ContractData", C7, "T_CVol",, "T") -> 67602 | L7: 7 | M7: =IFERROR(RANK($J7,$J$1:J$30)+COUNTIF($J$1:J7,J7)-1,"") -> 12 | N7: S.US.CMC | O7: S.US.KALU | P7: =RTD("cqg.rtd", ,"ContractData",O7, "LongDescription",, "T") -> Daiser Aluminum Corporation | Q7: =IFERROR(RTD("cqg.rtd", ,"ContractData",O7, "PerCentNetLastTrade",, "T")/100,"") -> 0.005559968229 | R7: https://finance.yahoo.com/quote/KALU | T7: 0.005559968229 | W7: =IFERROR(RTD("cqg.rtd", ,"ContractData",O7, "LongDescription",, "T"),"") -> Daiser Aluminum Corporation | Z7: 0.005559968229 | AB7: 22 | AC7: S.US.CRS | AD7: =IFERROR(RTD("cqg.rtd", ,"ContractData",AC7, "PerCentNetLastTrade",, "T")/100,"") -> -0.004868746703 | AE7: =IFERROR(RTD("cqg.rtd", ,"ContractData",AC7, "LongDescription",, "T"),"") -> Carpenter Technology Corp | AG7: 0.004868746703 | AH7: https://finance.yahoo.com/quote/CRS
A8: S.US.CMP | B8: 0 | C8: S.US.CMP | D8: =RTD("cqg.rtd", ,"ContractData",C8, "LongDescription",, "T") -> Compass Minerals Intl | H8: =RTD("cqg.rtd", ,"ContractData",C8, "LastTradeToday",, "T") -> 18.71 | I8: =RTD("cqg.rtd", ,"ContractData",C8, "NetLastTradeToday",, "T") -> -0.03 | J8: =IFERROR(RTD("cqg.rtd", ,"ContractData",C8, "PerCentNetLastTrade",, "T")/100,"") -> -0.001600853789 | K8: =RTD("cqg.rtd", ,"ContractData", C8, "T_CVol",, "T") -> 36702 | L8: 8 | M8: =IFERROR(RANK($J8,$J$1:J$30)+COUNTIF($J$1:J8,J8)-1,"") -> 17 | N8: S.US.CMP | O8: S.US.IE | P8: =RTD("cqg.rtd", ,"ContractData",O8, "LongDescription",, "T") -> Ivanhoe Electric Inc. | Q8: =IFERROR(RTD("cqg.rtd", ,"ContractData",O8, "PerCentNetLastTrade",, "T")/100,"") -> 0.004048582996 | R8: https://finance.yahoo.com/quote/IE | T8: 0.004048582996 | W8: =IFERROR(RTD("cqg.rtd", ,"ContractData",O8, "LongDescription",, "T"),"") -> Ivanhoe Electric Inc. | Z8: 0.004048582996 | AB8: 23 | AC8: S.US.UEC | AD8: =IFERROR(RTD("cqg.rtd", ,"ContractData",AC8, "PerCentNetLastTrade",, "T")/100,"") -> -0.004873294347 | AE8: =IFERROR(RTD("cqg.rtd", ,"ContractData",AC8, "LongDescription",, "T"),"") -> Uranium Energy Corp | AG8: 0.004873294347 | AH8: https://finance.yahoo.com/quote/UEC
A9: S.US.CNR | B9: 1 | C9: S.US.CNR | D9: =RTD("cqg.rtd", ,"ContractData",C9, "LongDescription",, "T") -> Core Natural Resources, Inc. | H9: =RTD("cqg.rtd", ,"ContractData",C9, "LastTradeToday",, "T") -> 75 | I9: =RTD("cqg.rtd", ,"ContractData",C9, "NetLastTradeToday",, "T") -> 0.23 | J9: =IFERROR(RTD("cqg.rtd", ,"ContractData",C9, "PerCentNetLastTrade",, "T")/100,"") -> 0.00307610004 | K9: =RTD("cqg.rtd", ,"ContractData", C9, "T_CVol",, "T") -> 31040 | L9: 9 | M9: =IFERROR(RANK($J9,$J$1:J$30)+COUNTIF($J$1:J9,J9)-1,"") -> 10 | N9: S.US.CNR | O9: S.US.RS | P9: =RTD("cqg.rtd", ,"ContractData",O9, "LongDescription",, "T") -> Reliance, Inc. | Q9: =IFERROR(RTD("cqg.rtd", ,"ContractData",O9, "PerCentNetLastTrade",, "T")/100,"") -> 0.003892927275 | R9: https://finance.yahoo.com/quote/RS | T9: 0.003892927275 | W9: =IFERROR(RTD("cqg.rtd", ,"ContractData",O9, "LongDescription",, "T"),"") -> Reliance, Inc. | Z9: 0.003892927275 | AB9: 24 | AC9: S.US.CENX | AD9: =IFERROR(RTD("cqg.rtd", ,"ContractData",AC9, "PerCentNetLastTrade",, "T")/100,"") -> -0.005517826825 | AE9: =IFERROR(RTD("cqg.rtd", ,"ContractData",AC9, "LongDescription",, "T"),"") -> Century Aluminum Co | AG9: 0.005517826825 | AH9: https://finance.yahoo.com/quote/CENX
A10: S.US.CRS | B10: 0 | C10: S.US.CRS | D10: =RTD("cqg.rtd", ,"ContractData",C10, "LongDescription",, "T") -> Carpenter Technology Corp | H10: =RTD("cqg.rtd", ,"ContractData",C10, "LastTradeToday",, "T") -> 245.27 | I10: =RTD("cqg.rtd", ,"ContractData",C10, "NetLastTradeToday",, "T") -> -1.2 | J10: =IFERROR(RTD("cqg.rtd", ,"ContractData",C10, "PerCentNetLastTrade",, "T")/100,"") -> -0.004868746703 | K10: =RTD("cqg.rtd", ,"ContractData", C10, "T_CVol",, "T") -> 13568 | L10: 10 | M10: =IFERROR(RANK($J10,$J$1:J$30)+COUNTIF($J$1:J10,J10)-1,"") -> 22 | N10: S.US.CRS | O10: S.US.CNR | P10: =RTD("cqg.rtd", ,"ContractData",O10, "LongDescription",, "T") -> Core Natural Resources, Inc. | Q10: =IFERROR(RTD("cqg.rtd", ,"ContractData",O10, "PerCentNetLastTrade",, "T")/100,"") -> 0.00307610004 | R10: https://finance.yahoo.com/quote/CNR | T10: 0.00307610004 | W10: =IFERROR(RTD("cqg.rtd", ,"ContractData",O10, "LongDescription",, "T"),"") -> Core Natural Resources, Inc. | Z10: 0.00307610004 | AB10: 25 | AC10: S.US.RGLD | AD10: =IFERROR(RTD("cqg.rtd", ,"ContractData",AC10, "PerCentNetLastTrade",, "T")/100,"") -> -0.005719002417 | AE10: =IFERROR(RTD("cqg.rtd", ,"ContractData",AC10, "LongDescription",, "T"),"") -> Royal Gold Inc | AG10: 0.005719002417 | AH10: https://finance.yahoo.com/quote/RGLD
A11: S.US.FCX | B11: 1 | C11: S.US.FCX | D11: =RTD("cqg.rtd", ,"ContractData",C11, "LongDescription",, "T") -> Freeport-McMoRan Inc. | H11: =RTD("cqg.rtd", ,"ContractData",C11, "LastTradeToday",, "T") -> 42.58 | I11: =RTD("cqg.rtd", ,"ContractData",C11, "NetLastTradeToday",, "T") -> 0.3 | J11: =IFERROR(RTD("cqg.rtd", ,"ContractData",C11, "PerCentNetLastTrade",, "T")/100,"") -> 0.007095553453 | K11: =RTD("cqg.rtd", ,"ContractData", C11, "T_CVol",, "T") -> 797156 | L11: 11 | M11: =IFERROR(RANK($J11,$J$1:J$30)+COUNTIF($J$1:J11,J11)-1,"") -> 4 | N11: S.US.FCX | O11: S.US.WS | P11: =RTD("cqg.rtd", ,"ContractData",O11, "LongDescription",, "T") -> Worthington Steel, Inc. | Q11: =IFERROR(RTD("cqg.rtd", ,"ContractData",O11, "PerCentNetLastTrade",, "T")/100,"") -> 0.002477547228 | R11: https://finance.yahoo.com/quote/WS | T11: 0.002477547228 | W11: =IFERROR(RTD("cqg.rtd", ,"ContractData",O11, "LongDescription",, "T"),"") -> Worthington Steel, Inc. | Z11: 0.002477547228 | AB11: 26 | AC11: S.US.MUX | AD11: =IFERROR(RTD("cqg.rtd", ,"ContractData",AC11, "PerCentNetLastTrade",, "T")/100,"") -> -0.008662175168 | AE11: =IFERROR(RTD("cqg.rtd", ,"ContractData",AC11, "LongDescription",, "T"),"") -> McEwen Inc. | AG11: 0.008662175168 | AH11: https://finance.yahoo.com/quote/MUX
A12: S.US.HCC | B12: 0 | C12: S.US.HCC | D12: =RTD("cqg.rtd", ,"ContractData",C12, "LongDescription",, "T") -> Warrior Met Coal, Inc. | H12: =RTD("cqg.rtd", ,"ContractData",C12, "LastTradeToday",, "T") -> 61.53 | I12: =RTD("cqg.rtd", ,"ContractData",C12, "NetLastTradeToday",, "T") -> -0.06 | J12: =IFERROR(RTD("cqg.rtd", ,"ContractData",C12, "PerCentNetLastTrade",, "T")/100,"") -> -0.0009741841208 | K12: =RTD("cqg.rtd", ,"ContractData", C12, "T_CVol",, "T") -> 45848 | L12: 12 | M12: =IFERROR(RANK($J12,$J$1:J$30)+COUNTIF($J$1:J12,J12)-1,"") -> 16 | N12: S.US.HCC | O12: S.US.CMC | P12: =RTD("cqg.rtd", ,"ContractData",O12, "LongDescription",, "T") -> Commercial Metals Co | Q12: =IFERROR(RTD("cqg.rtd", ,"ContractData",O12, "PerCentNetLastTrade",, "T")/100,"") -> 0.002450551374 | R12: https://finance.yahoo.com/quote/CMC | T12: 0.002450551374 | W12: =IFERROR(RTD("cqg.rtd", ,"ContractData",O12, "LongDescription",, "T"),"") -> Commercial Metals Co | Z12: 0.002450551374 | AB12: 27 | AC12: S.US.RYI | AD12: =IFERROR(RTD("cqg.rtd", ,"ContractData",AC12, "PerCentNetLastTrade",, "T")/100,"") -> -0.00912825194 | AE12: =IFERROR(RTD("cqg.rtd", ,"ContractData",AC12, "LongDescription",, "T"),"") -> Ryerson Holding Corporation | AG12: 0.00912825194 | AH12: https://finance.yahoo.com/quote/RYI
A13: S.US.HL | B13: 0 | C13: S.US.HL | D13: =RTD("cqg.rtd", ,"ContractData",C13, "LongDescription",, "T") -> Hecla Mining Co | H13: =RTD("cqg.rtd", ,"ContractData",C13, "LastTradeToday",, "T") -> 7.58 | I13: =RTD("cqg.rtd", ,"ContractData",C13, "NetLastTradeToday",, "T") -> -0.08 | J13: =IFERROR(RTD("cqg.rtd", ,"ContractData",C13, "PerCentNetLastTrade",, "T")/100,"") -> -0.01044386423 | K13: =RTD("cqg.rtd", ,"ContractData", C13, "T_CVol",, "T") -> 830845 | L13: 13 | M13: =IFERROR(RANK($J13,$J$1:J$30)+COUNTIF($J$1:J13,J13)-1,"") -> 28 | N13: S.US.HL | O13: S.US.SPY | P13: =RTD("cqg.rtd", ,"ContractData",O13, "LongDescription",, "T") -> SPDR S&P 500 | Q13: =IFERROR(RTD("cqg.rtd", ,"ContractData",O13, "PerCentNetLastTrade",, "T")/100,"") -> 0.001847166385 | R13: https://finance.yahoo.com/quote/SPY | T13: 0.001847166385 | W13: =IFERROR(RTD("cqg.rtd", ,"ContractData",O13, "LongDescription",, "T"),"") -> SPDR S&P 500 | Z13: 0.001847166385 | AB13: 28 | AC13: S.US.HL | AD13: =IFERROR(RTD("cqg.rtd", ,"ContractData",AC13, "PerCentNetLastTrade",, "T")/100,"") -> -0.01044386423 | AE13: =IFERROR(RTD("cqg.rtd", ,"ContractData",AC13, "LongDescription",, "T"),"") -> Hecla Mining Co | AG13: 0.01044386423 | AH13: https://finance.yahoo.com/quote/HL
A14: S.US.IE | B14: 1 | C14: S.US.IE | D14: =RTD("cqg.rtd", ,"ContractData",C14, "LongDescription",, "T") -> Ivanhoe Electric Inc. | H14: =RTD("cqg.rtd", ,"ContractData",C14, "LastTradeToday",, "T") -> 9.92 | I14: =RTD("cqg.rtd", ,"ContractData",C14, "NetLastTradeToday",, "T") -> 0.04 | J14: =IFERROR(RTD("cqg.rtd", ,"ContractData",C14, "PerCentNetLastTrade",, "T")/100,"") -> 0.004048582996 | K14: =RTD("cqg.rtd", ,"ContractData", C14, "T_CVol",, "T") -> 53917 | L14: 14 | M14: =IFERROR(RANK($J14,$J$1:J$30)+COUNTIF($J$1:J14,J14)-1,"") -> 8 | N14: S.US.IE | O14: S.US.MTRN | P14: =RTD("cqg.rtd", ,"ContractData",O14, "LongDescription",, "T") -> Materion Corporation | Q14: =IFERROR(RTD("cqg.rtd", ,"ContractData",O14, "PerCentNetLastTrade",, "T")/100,"") -> 0.001774780371 | R14: https://finance.yahoo.com/quote/MTRN | T14: 0.001774780371 | W14: =IFERROR(RTD("cqg.rtd", ,"ContractData",O14, "LongDescription",, "T"),"") -> Materion Corporation | Z14: 0.001774780371 | AB14: 29 | AC14: S.US.SXC | AD14: =IFERROR(RTD("cqg.rtd", ,"ContractData",AC14, "PerCentNetLastTrade",, "T")/100,"") -> -0.01404853129 | AE14: =IFERROR(RTD("cqg.rtd", ,"ContractData",AC14, "LongDescription",, "T"),"") -> Suncoke Energy, Inc. | AG14: 0.01404853129 | AH14: https://finance.yahoo.com/quote/SXC
A15: S.US.KALU | B15: 1 | C15: S.US.KALU | D15: =RTD("cqg.rtd", ,"ContractData",C15, "LongDescription",, "T") -> Daiser Aluminum Corporation | H15: =RTD("cqg.rtd", ,"ContractData",C15, "LastTradeToday",, "T") -> 75.96 | I15: =RTD("cqg.rtd", ,"ContractData",C15, "NetLastTradeToday",, "T") -> 0.42 | J15: =IFERROR(RTD("cqg.rtd", ,"ContractData",C15, "PerCentNetLastTrade",, "T")/100,"") -> 0.005559968229 | K15: =RTD("cqg.rtd", ,"ContractData", C15, "T_CVol",, "T") -> 13692 | L15: 15 | M15: =IFERROR(RANK($J15,$J$1:J$30)+COUNTIF($J$1:J15,J15)-1,"") -> 7 | N15: S.US.KALU | O15: S.US.AA | P15: =RTD("cqg.rtd", ,"ContractData",O15, "LongDescription",, "T") -> ALCOA Inc. | Q15: =IFERROR(RTD("cqg.rtd", ,"ContractData",O15, "PerCentNetLastTrade",, "T")/100,"") -> 0.0003191828918 | R15: https://finance.yahoo.com/quote/AA | T15: 0.0003191828918 | W15: =IFERROR(RTD("cqg.rtd", ,"ContractData",O15, "LongDescription",, "T"),"") -> ALCOA Inc. | Z15: 0.0003191828918 | AB15: 30 | AC15: S.US.LEU | AD15: =IFERROR(RTD("cqg.rtd", ,"ContractData",AC15, "PerCentNetLastTrade",, "T")/100,"") -> -0.0242225513 | AE15: =IFERROR(RTD("cqg.rtd", ,"ContractData",AC15, "LongDescription",, "T"),"") -> Centrus Energy Corp. | AG15: 0.0242225513 | AH15: https://finance.yahoo.com/quote/LEU
A16: S.US.LEU | B16: 0 | C16: S.US.LEU | D16: =RTD("cqg.rtd", ,"ContractData",C16, "LongDescription",, "T") -> Centrus Energy Corp. | H16: =RTD("cqg.rtd", ,"ContractData",C16, "LastTradeToday",, "T") -> 184.5 | I16: =RTD("cqg.rtd", ,"ContractData",C16, "NetLastTradeToday",, "T") -> -4.58 | J16: =IFERROR(RTD("cqg.rtd", ,"ContractData",C16, "PerCentNetLastTrade",, "T")/100,"") -> -0.0242225513 | K16: =RTD("cqg.rtd", ,"ContractData", C16, "T_CVol",, "T") -> 76031 | L16: 16 | M16: =IFERROR(RANK($J16,$J$1:J$30)+COUNTIF($J$1:J16,J16)-1,"") -> 30 | N16: S.US.LEU | O16: S.US.HCC | P16: =RTD("cqg.rtd", ,"ContractData",O16, "LongDescription",, "T") -> Warrior Met Coal, Inc. | Q16: =IFERROR(RTD("cqg.rtd", ,"ContractData",O16, "PerCentNetLastTrade",, "T")/100,"") -> -0.0009741841208 | R16: https://finance.yahoo.com/quote/HCC | U16: 0.0009741841208 | W16: =IFERROR(RTD("cqg.rtd", ,"ContractData",O16, "LongDescription",, "T"),"") -> Warrior Met Coal, Inc. | Z16: =IFERROR(T16,Q16) -> -0.0009741841208
A17: S.US.MP | B17: 1 | C17: S.US.MP | D17: =RTD("cqg.rtd", ,"ContractData",C17, "LongDescription",, "T") -> MP Materials Corp. | H17: =RTD("cqg.rtd", ,"ContractData",C17, "LastTradeToday",, "T") -> 77.1 | I17: =RTD("cqg.rtd", ,"ContractData",C17, "NetLastTradeToday",, "T") -> 0.52 | J17: =IFERROR(RTD("cqg.rtd", ,"ContractData",C17, "PerCentNetLastTrade",, "T")/100,"") -> 0.00679028467 | K17: =RTD("cqg.rtd", ,"ContractData", C17, "T_CVol",, "T") -> 617314 | L17: 17 | M17: =IFERROR(RANK($J17,$J$1:J$30)+COUNTIF($J$1:J17,J17)-1,"") -> 5 | N17: S.US.MP | O17: S.US.CMP | P17: =RTD("cqg.rtd", ,"ContractData",O17, "LongDescription",, "T") -> Compass Minerals Intl | Q17: =IFERROR(RTD("cqg.rtd", ,"ContractData",O17, "PerCentNetLastTrade",, "T")/100,"") -> -0.001600853789 | R17: https://finance.yahoo.com/quote/CMP | U17: 0.001600853789 | W17: =IFERROR(RTD("cqg.rtd", ,"ContractData",O17, "LongDescription",, "T"),"") -> Compass Minerals Intl | Z17: -0.001600853789
A18: S.US.MTRN | B18: 1 | C18: S.US.MTRN | D18: =RTD("cqg.rtd", ,"ContractData",C18, "LongDescription",, "T") -> Materion Corporation | H18: =RTD("cqg.rtd", ,"ContractData",C18, "LastTradeToday",, "T") -> 112.89 | I18: =RTD("cqg.rtd", ,"ContractData",C18, "NetLastTradeToday",, "T") -> 0.2 | J18: =IFERROR(RTD("cqg.rtd", ,"ContractData",C18, "PerCentNetLastTrade",, "T")/100,"") -> 0.001774780371 | K18: =RTD("cqg.rtd", ,"ContractData", C18, "T_CVol",, "T") -> 11883 | L18: 18 | M18: =IFERROR(RANK($J18,$J$1:J$30)+COUNTIF($J$1:J18,J18)-1,"") -> 14 | N18: S.US.MTRN | O18: S.US.CDE | P18: =RTD("cqg.rtd", ,"ContractData",O18, "LongDescription",, "T") -> Coeur Mining Inc Delaware | Q18: =IFERROR(RTD("cqg.rtd", ,"ContractData",O18, "PerCentNetLastTrade",, "T")/100,"") -> -0.001725625539 | R18: https://finance.yahoo.com/quote/CDE | U18: 0.001725625539 | W18: =IFERROR(RTD("cqg.rtd", ,"ContractData",O18, "LongDescription",, "T"),"") -> Coeur Mining Inc Delaware | Z18: -0.001725625539
A19: S.US.MTUS | B19: 1 | C19: S.US.MTUS | D19: =RTD("cqg.rtd", ,"ContractData",C19, "LongDescription",, "T") -> Metallus Inc. | H19: =RTD("cqg.rtd", ,"ContractData",C19, "LastTradeToday",, "T") -> 16.04 | I19: =RTD("cqg.rtd", ,"ContractData",C19, "NetLastTradeToday",, "T") -> 0.1 | J19: =IFERROR(RTD("cqg.rtd", ,"ContractData",C19, "PerCentNetLastTrade",, "T")/100,"") -> 0.006273525721 | K19: =RTD("cqg.rtd", ,"ContractData", C19, "T_CVol",, "T") -> 27989 | L19: 19 | M19: =IFERROR(RANK($J19,$J$1:J$30)+COUNTIF($J$1:J19,J19)-1,"") -> 6 | N19: S.US.MTUS | O19: S.US.AMR | P19: =RTD("cqg.rtd", ,"ContractData",O19, "LongDescription",, "T") -> Alpha Metallurgical Resources, Inc. | Q19: =IFERROR(RTD("cqg.rtd", ,"ContractData",O19, "PerCentNetLastTrade",, "T")/100,"") -> -0.003693039559 | R19: https://finance.yahoo.com/quote/AMR | U19: 0.003693039559 | W19: =IFERROR(RTD("cqg.rtd", ,"ContractData",O19, "LongDescription",, "T"),"") -> Alpha Metallurgical Resources, Inc. | Z19: -0.003693039559
A20: S.US.MUX | B20: 0 | C20: S.US.MUX | D20: =RTD("cqg.rtd", ,"ContractData",C20, "LongDescription",, "T") -> McEwen Inc. | H20: =RTD("cqg.rtd", ,"ContractData",C20, "LastTradeToday",, "T") -> 10.3 | I20: =RTD("cqg.rtd", ,"ContractData",C20, "NetLastTradeToday",, "T") -> -0.09 | J20: =IFERROR(RTD("cqg.rtd", ,"ContractData",C20, "PerCentNetLastTrade",, "T")/100,"") -> -0.008662175168 | K20: =RTD("cqg.rtd", ,"ContractData", C20, "T_CVol",, "T") -> 22999 | L20: 20 | M20: =IFERROR(RANK($J20,$J$1:J$30)+COUNTIF($J$1:J20,J20)-1,"") -> 26 | N20: S.US.MUX | O20: S.US.NEM | P20: =RTD("cqg.rtd", ,"ContractData",O20, "LongDescription",, "T") -> Newmont Goldcorp Corporation | Q20: =IFERROR(RTD("cqg.rtd", ,"ContractData",O20, "PerCentNetLastTrade",, "T")/100,"") -> -0.003942757009 | R20: https://finance.yahoo.com/quote/NEM | U20: 0.003942757009 | W20: =IFERROR(RTD("cqg.rtd", ,"ContractData",O20, "LongDescription",, "T"),"") -> Newmont Goldcorp Corporation | Z20: -0.003942757009
A21: S.US.NEM | B21: 0 | C21: S.US.NEM | D21: =RTD("cqg.rtd", ,"ContractData",C21, "LongDescription",, "T") -> Newmont Goldcorp Corporation | H21: =RTD("cqg.rtd", ,"ContractData",C21, "LastTradeToday",, "T") -> 68.21 | I21: =RTD("cqg.rtd", ,"ContractData",C21, "NetLastTradeToday",, "T") -> -0.27 | J21: =IFERROR(RTD("cqg.rtd", ,"ContractData",C21, "PerCentNetLastTrade",, "T")/100,"") -> -0.003942757009 | K21: =RTD("cqg.rtd", ,"ContractData", C21, "T_CVol",, "T") -> 554099 | L21: 21 | M21: =IFERROR(RANK($J21,$J$1:J$30)+COUNTIF($J$1:J21,J21)-1,"") -> 20 | N21: S.US.NEM | O21: S.US.BTU | P21: =RTD("cqg.rtd", ,"ContractData",O21, "LongDescription",, "T") -> Peabody Energy | Q21: =IFERROR(RTD("cqg.rtd", ,"ContractData",O21, "PerCentNetLastTrade",, "T")/100,"") -> -0.004451864218 | R21: https://finance.yahoo.com/quote/BTU | U21: 0.004451864218 | W21: =IFERROR(RTD("cqg.rtd", ,"ContractData",O21, "LongDescription",, "T"),"") -> Peabody Energy | Z21: -0.004451864218
A22: S.US.NUE | B22: 1 | C22: S.US.NUE | D22: =RTD("cqg.rtd", ,"ContractData",C22, "LongDescription",, "T") -> Nucor Corp | H22: =RTD("cqg.rtd", ,"ContractData",C22, "LastTradeToday",, "T") -> 148.52 | I22: =RTD("cqg.rtd", ,"ContractData",C22, "NetLastTradeToday",, "T") -> 4.17 | J22: =IFERROR(RTD("cqg.rtd", ,"ContractData",C22, "PerCentNetLastTrade",, "T")/100,"") -> 0.02888811915 | K22: =RTD("cqg.rtd", ,"ContractData", C22, "T_CVol",, "T") -> 328590 | L22: 22 | M22: =IFERROR(RANK($J22,$J$1:J$30)+COUNTIF($J$1:J22,J22)-1,"") -> 1 | N22: S.US.NUE | O22: S.US.CRS | P22: =RTD("cqg.rtd", ,"ContractData",O22, "LongDescription",, "T") -> Carpenter Technology Corp | Q22: =IFERROR(RTD("cqg.rtd", ,"ContractData",O22, "PerCentNetLastTrade",, "T")/100,"") -> -0.004868746703 | R22: https://finance.yahoo.com/quote/CRS | U22: 0.004868746703 | W22: =IFERROR(RTD("cqg.rtd", ,"ContractData",O22, "LongDescription",, "T"),"") -> Carpenter Technology Corp | Z22: -0.004868746703
A23: S.US.RGLD | B23: 0 | C23: S.US.RGLD | D23: =RTD("cqg.rtd", ,"ContractData",C23, "LongDescription",, "T") -> Royal Gold Inc | H23: =RTD("cqg.rtd", ,"ContractData",C23, "LastTradeToday",, "T") -> 168.64 | I23: =RTD("cqg.rtd", ,"ContractData",C23, "NetLastTradeToday",, "T") -> -0.97 | J23: =IFERROR(RTD("cqg.rtd", ,"ContractData",C23, "PerCentNetLastTrade",, "T")/100,"") -> -0.005719002417 | K23: =RTD("cqg.rtd", ,"ContractData", C23, "T_CVol",, "T") -> 55572 | L23: 23 | M23: =IFERROR(RANK($J23,$J$1:J$30)+COUNTIF($J$1:J23,J23)-1,"") -> 25 | N23: S.US.RGLD | O23: S.US.UEC | P23: =RTD("cqg.rtd", ,"ContractData",O23, "LongDescription",, "T") -> Uranium Energy Corp | Q23: =IFERROR(RTD("cqg.rtd", ,"ContractData",O23, "PerCentNetLastTrade",, "T")/100,"") -> -0.004873294347 | R23: https://finance.yahoo.com/quote/UEC | U23: 0.004873294347 | W23: =IFERROR(RTD("cqg.rtd", ,"ContractData",O23, "LongDescription",, "T"),"") -> Uranium Energy Corp | Z23: -0.004873294347
A24: S.US.RS | B24: 1 | C24: S.US.RS | D24: =RTD("cqg.rtd", ,"ContractData",C24, "LongDescription",, "T") -> Reliance, Inc. | H24: =RTD("cqg.rtd", ,"ContractData",C24, "LastTradeToday",, "T") -> 291.4 | I24: =RTD("cqg.rtd", ,"ContractData",C24, "NetLastTradeToday",, "T") -> 1.13 | J24: =IFERROR(RTD("cqg.rtd", ,"ContractData",C24, "PerCentNetLastTrade",, "T")/100,"") -> 0.003892927275 | K24: =RTD("cqg.rtd", ,"ContractData", C24, "T_CVol",, "T") -> 3912 | L24: 24 | M24: =IFERROR(RANK($J24,$J$1:J$30)+COUNTIF($J$1:J24,J24)-1,"") -> 9 | N24: S.US.RS | O24: S.US.CENX | P24: =RTD("cqg.rtd", ,"ContractData",O24, "LongDescription",, "T") -> Century Aluminum Co | Q24: =IFERROR(RTD("cqg.rtd", ,"ContractData",O24, "PerCentNetLastTrade",, "T")/100,"") -> -0.005517826825 | R24: https://finance.yahoo.com/quote/CENX | U24: 0.005517826825 | W24: =IFERROR(RTD("cqg.rtd", ,"ContractData",O24, "LongDescription",, "T"),"") -> Century Aluminum Co | Z24: -0.005517826825
A25: S.US.RYI | B25: 0 | C25: S.US.RYI | D25: =RTD("cqg.rtd", ,"ContractData",C25, "LongDescription",, "T") -> Ryerson Holding Corporation | H25: =RTD("cqg.rtd", ,"ContractData",C25, "LastTradeToday",, "T") -> 21.71 | I25: =RTD("cqg.rtd", ,"ContractData",C25, "NetLastTradeToday",, "T") -> -0.2 | J25: =IFERROR(RTD("cqg.rtd", ,"ContractData",C25, "PerCentNetLastTrade",, "T")/100,"") -> -0.00912825194 | K25: =RTD("cqg.rtd", ,"ContractData", C25, "T_CVol",, "T") -> 20426 | L25: 25 | M25: =IFERROR(RANK($J25,$J$1:J$30)+COUNTIF($J$1:J25,J25)-1,"") -> 27 | N25: S.US.RYI | O25: S.US.RGLD | P25: =RTD("cqg.rtd", ,"ContractData",O25, "LongDescription",, "T") -> Royal Gold Inc | Q25: =IFERROR(RTD("cqg.rtd", ,"ContractData",O25, "PerCentNetLastTrade",, "T")/100,"") -> -0.005719002417 | R25: https://finance.yahoo.com/quote/RGLD | U25: 0.005719002417 | W25: =IFERROR(RTD("cqg.rtd", ,"ContractData",O25, "LongDescription",, "T"),"") -> Royal Gold Inc | Z25: -0.005719002417
A26: S.US.STLD | B26: 1 | C26: S.US.STLD | D26: =RTD("cqg.rtd", ,"ContractData",C26, "LongDescription",, "T") -> Steel Dynamics Inc | H26: =RTD("cqg.rtd", ,"ContractData",C26, "LastTradeToday",, "T") -> 129.36 | I26: =RTD("cqg.rtd", ,"ContractData",C26, "NetLastTradeToday",, "T") -> 1.88 | J26: =IFERROR(RTD("cqg.rtd", ,"ContractData",C26, "PerCentNetLastTrade",, "T")/100,"") -> 0.01474741136 | K26: =RTD("cqg.rtd", ,"ContractData", C26, "T_CVol",, "T") -> 107439 | L26: 26 | M26: =IFERROR(RANK($J26,$J$1:J$30)+COUNTIF($J$1:J26,J26)-1,"") -> 2 | N26: S.US.STLD | O26: S.US.MUX | P26: =RTD("cqg.rtd", ,"ContractData",O26, "LongDescription",, "T") -> McEwen Inc. | Q26: =IFERROR(RTD("cqg.rtd", ,"ContractData",O26, "PerCentNetLastTrade",, "T")/100,"") -> -0.008662175168 | R26: https://finance.yahoo.com/quote/MUX | U26: 0.008662175168 | W26: =IFERROR(RTD("cqg.rtd", ,"ContractData",O26, "LongDescription",, "T"),"") -> McEwen Inc. | Z26: -0.008662175168
A27: S.US.SXC | B27: 0 | C27: S.US.SXC | D27: =RTD("cqg.rtd", ,"ContractData",C27, "LongDescription",, "T") -> Suncoke Energy, Inc. | H27: =RTD("cqg.rtd", ,"ContractData",C27, "LastTradeToday",, "T") -> 7.72 | I27: =RTD("cqg.rtd", ,"ContractData",C27, "NetLastTradeToday",, "T") -> -0.11 | J27: =IFERROR(RTD("cqg.rtd", ,"ContractData",C27, "PerCentNetLastTrade",, "T")/100,"") -> -0.01404853129 | K27: =RTD("cqg.rtd", ,"ContractData", C27, "T_CVol",, "T") -> 40988 | L27: 27 | M27: =IFERROR(RANK($J27,$J$1:J$30)+COUNTIF($J$1:J27,J27)-1,"") -> 29 | N27: S.US.SXC | O27: S.US.RYI | P27: =RTD("cqg.rtd", ,"ContractData",O27, "LongDescription",, "T") -> Ryerson Holding Corporation | Q27: =IFERROR(RTD("cqg.rtd", ,"ContractData",O27, "PerCentNetLastTrade",, "T")/100,"") -> -0.00912825194 | R27: https://finance.yahoo.com/quote/RYI | U27: 0.00912825194 | W27: =IFERROR(RTD("cqg.rtd", ,"ContractData",O27, "LongDescription",, "T"),"") -> Ryerson Holding Corporation | Z27: -0.00912825194
A28: S.US.UEC | B28: 0 | C28: S.US.UEC | D28: =RTD("cqg.rtd", ,"ContractData",C28, "LongDescription",, "T") -> Uranium Energy Corp | H28: =RTD("cqg.rtd", ,"ContractData",C28, "LastTradeToday",, "T") -> 10.21 | I28: =RTD("cqg.rtd", ,"ContractData",C28, "NetLastTradeToday",, "T") -> -0.05 | J28: =IFERROR(RTD("cqg.rtd", ,"ContractData",C28, "PerCentNetLastTrade",, "T")/100,"") -> -0.004873294347 | K28: =RTD("cqg.rtd", ,"ContractData", C28, "T_CVol",, "T") -> 507631 | L28: 28 | M28: =IFERROR(RANK($J28,$J$1:J$30)+COUNTIF($J$1:J28,J28)-1,"") -> 23 | N28: S.US.UEC | O28: S.US.HL | P28: =RTD("cqg.rtd", ,"ContractData",O28, "LongDescription",, "T") -> Hecla Mining Co | Q28: =IFERROR(RTD("cqg.rtd", ,"ContractData",O28, "PerCentNetLastTrade",, "T")/100,"") -> -0.01044386423 | R28: https://finance.yahoo.com/quote/HL | U28: 0.01044386423 | W28: =IFERROR(RTD("cqg.rtd", ,"ContractData",O28, "LongDescription",, "T"),"") -> Hecla Mining Co | Z28: -0.01044386423
A29: S.US.WS | B29: 1 | C29: S.US.WS | D29: =RTD("cqg.rtd", ,"ContractData",C29, "LongDescription",, "T") -> Worthington Steel, Inc. | H29: =RTD("cqg.rtd", ,"ContractData",C29, "LastTradeToday",, "T") -> 32.37 | I29: =RTD("cqg.rtd", ,"ContractData",C29, "NetLastTradeToday",, "T") -> 0.08 | J29: =IFERROR(RTD("cqg.rtd", ,"ContractData",C29, "PerCentNetLastTrade",, "T")/100,"") -> 0.002477547228 | K29: =RTD("cqg.rtd", ,"ContractData", C29, "T_CVol",, "T") -> 32794 | L29: 29 | M29: =IFERROR(RANK($J29,$J$1:J$30)+COUNTIF($J$1:J29,J29)-1,"") -> 11 | N29: S.US.WS | O29: S.US.SXC | P29: =RTD("cqg.rtd", ,"ContractData",O29, "LongDescription",, "T") -> Suncoke Energy, Inc. | Q29: =IFERROR(RTD("cqg.rtd", ,"ContractData",O29, "PerCentNetLastTrade",, "T")/100,"") -> -0.01404853129 | R29: https://finance.yahoo.com/quote/SXC | U29: 0.01404853129 | W29: =IFERROR(RTD("cqg.rtd", ,"ContractData",O29, "LongDescription",, "T"),"") -> Suncoke Energy, Inc. | Z29: -0.01404853129
A30: S.US.SPY | B30: 1 | C30: S.US.SPY | D30: =RTD("cqg.rtd", ,"ContractData",C30, "LongDescription",, "T") -> SPDR S&P 500 | H30: =RTD("cqg.rtd", ,"ContractData",C30, "LastTradeToday",, "T") -> 645.42 | I30: =RTD("cqg.rtd", ,"ContractData",C30, "NetLastTradeToday",, "T") -> 1.19 | J30: =IFERROR(RTD("cqg.rtd", ,"ContractData",C30, "PerCentNetLastTrade",, "T")/100,"") -> 0.001847166385 | K30: =RTD("cqg.rtd", ,"ContractData", C30, "T_CVol",, "T") -> 2476884 | L30: 30 | M30: =IFERROR(RANK($J30,$J$1:J$30)+COUNTIF($J$1:J30,J30)-1,"") -> 13 | N30: S.US.SPY | O30: S.US.LEU | P30: =RTD("cqg.rtd", ,"ContractData",O30, "LongDescription",, "T") -> Centrus Energy Corp. | Q30: =IFERROR(RTD("cqg.rtd", ,"ContractData",O30, "PerCentNetLastTrade",, "T")/100,"") -> -0.0242225513 | R30: https://finance.yahoo.com/quote/LEU | U30: 0.0242225513 | W30: =IFERROR(RTD("cqg.rtd", ,"ContractData",O30, "LongDescription",, "T"),"") -> Centrus Energy Corp. | Z30: -0.0242225513
B99: =SUM(B1:B30)/30 -> 0.5
